Workbook

Sheet INTRO
C1: The current version should be used in countries non-endemic for onchocerciasis
B2: Joint request for selected PC medicines
B4: As part of global efforts to accelerate expansion of preventive chemotherapy (PC) for control and elimination of lymphatic filariasis, schistosomiasis and soil-transmitted helminthiases, the World Health Organization (WHO) facilitates the supply of albendazole 400 mg tablets (GSK) to national lymphatic filariasis elimination programmes and national soil-transmitted helminth control programmes; diethylcarbamazine citrate 100 mg tablets (Eisai) to national lymphatic filariasis elimination programmes; mebendazole 500 mg tablets (J&J) for national soil-transmitted helminth control programmes; and praziquantel 600 mg tablets (Merck KGaA) for school-age children to national schistosomiasis control programmes. WHO also collaborates to supply ivermectin 3 mg tablets (Merck) for onchocerciasis and lymphatic filariasis donation programmes. This Excel-based tool is designed to assist countries in quantifying the number of tablets of relevant PC medicines required to reach the planned target population and districts for the year of request. Output of the tool is a joint request for PC medicines, which can be printed, signed and submitted to WHO to request these medicines.
B6: Structure of the application (worksheets):
B8: INTRO | C8: This worksheet includes guides on how to complete the joint request for selected PC medicines and information about the status of PC for endemic diseases in the country.
B9: COUNTRY_INFO | C9: This worksheet includes information about administrative structure of the country, population by age group, status of endemicity for each disease, population requiring PC and planned interventions.
B10: DEC, ALB_MBD and PZQ | C10: These worksheets include information about endemic districts targeted for treatment with specified PC medicines, treatment plan, and number of tablets required and requested.
B11: SUMMARY | C11: This worksheet includes summary of number of tablets requested, information about stock, and date for submission of requested medicines. Before generating the report (run macros) please select the medicine for which the report is needed. Follow the same rule to see the number of people to be treated for the specific disease. This worksheet should be printed and submitted as a joint request for selected PC medicines (see the instruction for submission in the SUMMARY worksheet).
B13: Instruction for data entry
B15: Most of the cells in the above-mentioned worksheets include formula that are calculated automatically according to the treatment policy recommended by WHO for each disease. See the link http://www.who.int/neglected_diseases/preventive_chemotherapy/pct_manual/en/index.html
B17: Please enter your data into the cells according to their colour code:
C19: White - cell is not protected. Please enter the value of the requested indicator.
C21: Yellow - cell is protected and includes name of indicator. No data entry required.
C23: Orange - cell is not protected and includes a drop-down menu. Please select the value from the drop-down list.
C26: Green - cell is not protected and includes formula. Please change the value only if your data are different from those that are calculated automatically.
C29: Blue - cell is protected and includes formula. No data entry required.
B31: Country data
B33: COUNTRY | E33: Botswana
B35: Year for request of the medicine | E35: 2017
B37: Is country endemic for lymphatic filariasis (LF)? | E37: Non-endemic
B39: Is country endemic for onchocerciasis (ONCHO)? | E39: Non-endemic
B41: Is country endemic for soil-transmitted helminthiases (STH)? | E41: Endemic
B43: Is country endemic for schistosomiasis (SCH)? | E43: Endemic but PC is not required
B45: How many administrative units in the country? | E45: 24
B47: If demographical data at the second administrative level are not available by age group, please enter the proportion (%) of population by age group in the country. If data are available, please leave these cells blank.
B48: Preschool-age children (PreSAC) - aged 1-4 years | E48: 0.1
B49: School-age children (SAC) - aged 5-14 years | E49: 0.09
B50: Adults - aged 15 years and older | E50: 0.61

Sheet COUNTRY_INFO
A1: COUNTRY INFORMATION
A2: Administrative structure, population by age group, status of endemicity and planned interventions
A4: TOTAL | D4: =SUM(D$9:D$1000) -> 2160882 | E4: =SUM(E$9:E$1000) -> 216089 | F4: =SUM(F$9:F$1000) -> 194482 | G4: =SUM(G$9:G$1000) -> 1318140 | K4: =SUM(K$9:K$1000) -> 0 | L4: =SUM(L$9:L$1000) -> 116050 | M4: =SUM(M$9:M$1000) -> 0
A6: Country administrative structure | D6: Population | H6: Endemicity | K6: Population requiring PC | N6: Number of treatment rounds planned for the year | Q6: Epidemiological surveys planned for the year
A7: Country | B7: Province/State | C7: District | D7: Total | E7: PreSAC | F7: SAC | G7: Adults | H7: LF | I7: STH | J7: SCH | K7: LF | L7: STH | M7: SCH | N7: LF | O7: STH | P7: SCH | Q7: LF | R7: STH | S7: SCH | T7: UI_ID | U7: UI_Name
A9: =IF(INTRO!$E$33<>0,INTRO!$E$33, " ") -> Botswana | C9: BOBIRWA | D9: 71936 | E9: =IF(INTRO!$E$48="","",ROUND($D9*INTRO!$E$48,0)) -> 7194 | F9: =IF(INTRO!$E$49="","",ROUND($D9*INTRO!$E$49,0)) -> 6474 | G9: =IF(INTRO!$E$50="","",ROUND($D9*INTRO!$E$50,0)) -> 43881 | I9: 0 | K9: =IF(INTRO!$E$37="Endemic",IF($H9>0,IF($H9=4,"Unknown",IF($H9=99,"Stopped",$D9)),0),"Not required") -> Not required | L9: =IF(INTRO!$E$41="Endemic", IF(AND($I9>1, $I9<5), IF($I9=4, "Unknown", E9+F9), 0),"Not required") -> 0 | M9: =IF(INTRO!$E$43="Endemic", IF(AND($J9>0,$J9<5), IF($J9=4,"Unknown", IF($J9=1, $F9*0.33, IF($J9=2, $F9*0.5+$G9*0.2, SUM(F9:G9)))), 0),"Not required") -> Not required | O9: 0 | T9: 4290 | U9: Bobirwa | W9: =U9=C9 -> TRUE
A10: =IF(INTRO!$E$33<>0,INTRO!$E$33, " ") -> Botswana | C10: BOTETI | D10: 72139 | E10: =IF(INTRO!$E$48="","",ROUND($D10*INTRO!$E$48,0)) -> 7214 | F10: =IF(INTRO!$E$49="","",ROUND($D10*INTRO!$E$49,0)) -> 6493 | G10: =IF(INTRO!$E$50="","",ROUND($D10*INTRO!$E$50,0)) -> 44005 | I10: 1 | K10: =IF(INTRO!$E$37="Endemic",IF($H10>0,IF($H10=4,"Unknown",IF($H10=99,"Stopped",$D10)),0),"Not required") -> Not required | L10: =IF(INTRO!$E$41="Endemic", IF(AND($I10>1, $I10<5), IF($I10=4, "Unknown", E10+F10), 0),"Not required") -> 0 | M10: =IF(INTRO!$E$43="Endemic", IF(AND($J10>0,$J10<5), IF($J10=4,"Unknown", IF($J10=1, $F10*0.33, IF($J10=2, $F10*0.5+$G10*0.2, SUM(F10:G10)))), 0),"Not required") -> Not required | O10: 0 | T10: 4291 | U10: Boteti | W10: =U10=C10 -> TRUE
A11: =IF(INTRO!$E$33<>0,INTRO!$E$33, " ") -> Botswana | C11: CHOBE | D11: 25173 | E11: =IF(INTRO!$E$48="","",ROUND($D11*INTRO!$E$48,0)) -> 2517 | F11: =IF(INTRO!$E$49="","",ROUND($D11*INTRO!$E$49,0)) -> 2266 | G11: =IF(INTRO!$E$50="","",ROUND($D11*INTRO!$E$50,0)) -> 15356 | I11: 3 | K11: =IF(INTRO!$E$37="Endemic",IF($H11>0,IF($H11=4,"Unknown",IF($H11=99,"Stopped",$D11)),0),"Not required") -> Not required | L11: =IF(INTRO!$E$41="Endemic", IF(AND($I11>1, $I11<5), IF($I11=4, "Unknown", E11+F11), 0),"Not required") -> 4783 | M11: =IF(INTRO!$E$43="Endemic", IF(AND($J11>0,$J11<5), IF($J11=4,"Unknown", IF($J11=1, $F11*0.33, IF($J11=2, $F11*0.5+$G11*0.2, SUM(F11:G11)))), 0),"Not required") -> Not required | O11: 2 | T11: 4304 | U11: Chobe | W11: TRUE
A12: =IF(INTRO!$E$33<>0,INTRO!$E$33, " ") -> Botswana | C12: FRANCISTOWN | D12: 141917 | E12: =IF(INTRO!$E$48="","",ROUND($D12*INTRO!$E$48,0)) -> 14192 | F12: =IF(INTRO!$E$49="","",ROUND($D12*INTRO!$E$49,0)) -> 12773 | G12: =IF(INTRO!$E$50="","",ROUND($D12*INTRO!$E$50,0)) -> 86569 | I12: 1 | K12: =IF(INTRO!$E$37="Endemic",IF($H12>0,IF($H12=4,"Unknown",IF($H12=99,"Stopped",$D12)),0),"Not required") -> Not required | L12: =IF(INTRO!$E$41="Endemic", IF(AND($I12>1, $I12<5), IF($I12=4, "Unknown", E12+F12), 0),"Not required") -> 0 | M12: =IF(INTRO!$E$43="Endemic", IF(AND($J12>0,$J12<5), IF($J12=4,"Unknown", IF($J12=1, $F12*0.33, IF($J12=2, $F12*0.5+$G12*0.2, SUM(F12:G12)))), 0),"Not required") -> Not required | O12: 0 | T12: 4302 | U12: Francistown | W12: TRUE
A13: =IF(INTRO!$E$33<>0,INTRO!$E$33, " ") -> Botswana | C13: GABORONE | D13: 286024 | E13: =IF(INTRO!$E$48="","",ROUND($D13*INTRO!$E$48,0)) -> 28602 | F13: =IF(INTRO!$E$49="","",ROUND($D13*INTRO!$E$49,0)) -> 25742 | G13: =IF(INTRO!$E$50="","",ROUND($D13*INTRO!$E$50,0)) -> 174475 | I13: 1 | K13: =IF(INTRO!$E$37="Endemic",IF($H13>0,IF($H13=4,"Unknown",IF($H13=99,"Stopped",$D13)),0),"Not required") -> Not required | L13: =IF(INTRO!$E$41="Endemic", IF(AND($I13>1, $I13<5), IF($I13=4, "Unknown", E13+F13), 0),"Not required") -> 0 | M13: =IF(INTRO!$E$43="Endemic", IF(AND($J13>0,$J13<5), IF($J13=4,"Unknown", IF($J13=1, $F13*0.33, IF($J13=2, $F13*0.5+$G13*0.2, SUM(F13:G13)))), 0),"Not required") -> Not required | O13: 0 | T13: 4307 | U13: Gaborone | W13: TRUE
A14: =IF(INTRO!$E$33<>0,INTRO!$E$33, " ") -> Botswana | C14: GANTSI/CHARLESHILL | D14: 35581 | E14: =IF(INTRO!$E$48="","",ROUND($D14*INTRO!$E$48,0)) -> 3558 | F14: =IF(INTRO!$E$49="","",ROUND($D14*INTRO!$E$49,0)) -> 3202 | G14: =IF(INTRO!$E$50="","",ROUND($D14*INTRO!$E$50,0)) -> 21704 | I14: 1 | K14: =IF(INTRO!$E$37="Endemic",IF($H14>0,IF($H14=4,"Unknown",IF($H14=99,"Stopped",$D14)),0),"Not required") -> Not required | L14: =IF(INTRO!$E$41="Endemic", IF(AND($I14>1, $I14<5), IF($I14=4, "Unknown", E14+F14), 0),"Not required") -> 0 | M14: =IF(INTRO!$E$43="Endemic", IF(AND($J14>0,$J14<5), IF($J14=4,"Unknown", IF($J14=1, $F14*0.33, IF($J14=2, $F14*0.5+$G14*0.2, SUM(F14:G14)))), 0),"Not required") -> Not required | O14: 0 | T14: 4296 | U14: Gantsi Charleshill | W14: FALSE
A15: =IF(INTRO!$E$33<>0,INTRO!$E$33, " ") -> Botswana | C15: GOODHOPE | D15: 55565 | E15: =IF(INTRO!$E$48="","",ROUND($D15*INTRO!$E$48,0)) -> 5557 | F15: =IF(INTRO!$E$49="","",ROUND($D15*INTRO!$E$49,0)) -> 5001 | G15: =IF(INTRO!$E$50="","",ROUND($D15*INTRO!$E$50,0)) -> 33895 | I15: 1 | K15: =IF(INTRO!$E$37="Endemic",IF($H15>0,IF($H15=4,"Unknown",IF($H15=99,"Stopped",$D15)),0),"Not required") -> Not required | L15: =IF(INTRO!$E$41="Endemic", IF(AND($I15>1, $I15<5), IF($I15=4, "Unknown", E15+F15), 0),"Not required") -> 0 | M15: =IF(INTRO!$E$43="Endemic", IF(AND($J15>0,$J15<5), IF($J15=4,"Unknown", IF($J15=1, $F15*0.33, IF($J15=2, $F15*0.5+$G15*0.2, SUM(F15:G15)))), 0),"Not required") -> Not required | O15: 0 | T15: 4310 | U15: Good Hope | W15: FALSE
A16: =IF(INTRO!$E$33<>0,INTRO!$E$33, " ") -> Botswana | C16: JWANENG | D16: 27534 | E16: =IF(INTRO!$E$48="","",ROUND($D16*INTRO!$E$48,0)) -> 2753 | F16: =IF(INTRO!$E$49="","",ROUND($D16*INTRO!$E$49,0)) -> 2478 | G16: =IF(INTRO!$E$50="","",ROUND($D16*INTRO!$E$50,0)) -> 16796 | I16: 2 | K16: =IF(INTRO!$E$37="Endemic",IF($H16>0,IF($H16=4,"Unknown",IF($H16=99,"Stopped",$D16)),0),"Not required") -> Not required | L16: =IF(INTRO!$E$41="Endemic", IF(AND($I16>1, $I16<5), IF($I16=4, "Unknown", E16+F16), 0),"Not required") -> 5231 | M16: =IF(INTRO!$E$43="Endemic", IF(AND($J16>0,$J16<5), IF($J16=4,"Unknown", IF($J16=1, $F16*0.33, IF($J16=2, $F16*0.5+$G16*0.2, SUM(F16:G16)))), 0),"Not required") -> Not required | O16: 1 | T16: 4311 | U16: Jwaneng | W16: TRUE
A17: =IF(INTRO!$E$33<>0,INTRO!$E$33, " ") -> Botswana | C17: KANYE/MOSHOPA | D17: 139353 | E17: =IF(INTRO!$E$48="","",ROUND($D17*INTRO!$E$48,0)) -> 13935 | F17: =IF(INTRO!$E$49="","",ROUND($D17*INTRO!$E$49,0)) -> 12542 | G17: =IF(INTRO!$E$50="","",ROUND($D17*INTRO!$E$50,0)) -> 85005 | I17: 1 | K17: =IF(INTRO!$E$37="Endemic",IF($H17>0,IF($H17=4,"Unknown",IF($H17=99,"Stopped",$D17)),0),"Not required") -> Not required | L17: =IF(INTRO!$E$41="Endemic", IF(AND($I17>1, $I17<5), IF($I17=4, "Unknown", E17+F17), 0),"Not required") -> 0 | M17: =IF(INTRO!$E$43="Endemic", IF(AND($J17>0,$J17<5), IF($J17=4,"Unknown", IF($J17=1, $F17*0.33, IF($J17=2, $F17*0.5+$G17*0.2, SUM(F17:G17)))), 0),"Not required") -> Not required | O17: 0 | T17: 4312 | U17: Kanye Moshupa | W17: FALSE
A18: =IF(INTRO!$E$33<>0,INTRO!$E$33, " ") -> Botswana | C18: KGALAGADI NORTH | D18: 22077 | E18: =IF(INTRO!$E$48="","",ROUND($D18*INTRO!$E$48,0)) -> 2208 | F18: =IF(INTRO!$E$49="","",ROUND($D18*INTRO!$E$49,0)) -> 1987 | G18: =IF(INTRO!$E$50="","",ROUND($D18*INTRO!$E$50,0)) -> 13467 | I18: 1 | K18: =IF(INTRO!$E$37="Endemic",IF($H18>0,IF($H18=4,"Unknown",IF($H18=99,"Stopped",$D18)),0),"Not required") -> Not required | L18: =IF(INTRO!$E$41="Endemic", IF(AND($I18>1, $I18<5), IF($I18=4, "Unknown", E18+F18), 0),"Not required") -> 0 | M18: =IF(INTRO!$E$43="Endemic", IF(AND($J18>0,$J18<5), IF($J18=4,"Unknown", IF($J18=1, $F18*0.33, IF($J18=2, $F18*0.5+$G18*0.2, SUM(F18:G18)))), 0),"Not required") -> Not required | O18: 0 | T18: 4297 | U18: Kgalagadi North | W18: TRUE
A19: =IF(INTRO!$E$33<>0,INTRO!$E$33, " ") -> Botswana | C19: KGALAGADI SOUTH | D19: 32363 | E19: =IF(INTRO!$E$48="","",ROUND($D19*INTRO!$E$48,0)) -> 3236 | F19: =IF(INTRO!$E$49="","",ROUND($D19*INTRO!$E$49,0)) -> 2913 | G19: =IF(INTRO!$E$50="","",ROUND($D19*INTRO!$E$50,0)) -> 19741 | I19: 2 | K19: =IF(INTRO!$E$37="Endemic",IF($H19>0,IF($H19=4,"Unknown",IF($H19=99,"Stopped",$D19)),0),"Not required") -> Not required | L19: =IF(INTRO!$E$41="Endemic", IF(AND($I19>1, $I19<5), IF($I19=4, "Unknown", E19+F19), 0),"Not required") -> 6149 | M19: =IF(INTRO!$E$43="Endemic", IF(AND($J19>0,$J19<5), IF($J19=4,"Unknown", IF($J19=1, $F19*0.33, IF($J19=2, $F19*0.5+$G19*0.2, SUM(F19:G19)))), 0),"Not required") -> Not required | O19: 1 | T19: 4298 | U19: Kgalagadi South | W19: TRUE
A20: =IF(INTRO!$E$33<>0,INTRO!$E$33, " ") -> Botswana | C20: KGATLENG | D20: 98827 | E20: =IF(INTRO!$E$48="","",ROUND($D20*INTRO!$E$48,0)) -> 9883 | F20: =IF(INTRO!$E$49="","",ROUND($D20*INTRO!$E$49,0)) -> 8894 | G20: =IF(INTRO!$E$50="","",ROUND($D20*INTRO!$E$50,0)) -> 60284 | I20: 1 | K20: =IF(INTRO!$E$37="Endemic",IF($H20>0,IF($H20=4,"Unknown",IF($H20=99,"Stopped",$D20)),0),"Not required") -> Not required | L20: =IF(INTRO!$E$41="Endemic", IF(AND($I20>1, $I20<5), IF($I20=4, "Unknown", E20+F20), 0),"Not required") -> 0 | M20: =IF(INTRO!$E$43="Endemic", IF(AND($J20>0,$J20<5), IF($J20=4,"Unknown", IF($J20=1, $F20*0.33, IF($J20=2, $F20*0.5+$G20*0.2, SUM(F20:G20)))), 0),"Not required") -> Not required | O20: 0 | T20: 4299 | U20: Kgatleng | W20: TRUE
A21: =IF(INTRO!$E$33<>0,INTRO!$E$33, " ") -> Botswana | C21: KWENENG EAST | D21: 276828 | E21: =IF(INTRO!$E$48="","",ROUND($D21*INTRO!$E$48,0)) -> 27683 | F21: =IF(INTRO!$E$49="","",ROUND($D21*INTRO!$E$49,0)) -> 24915 | G21: =IF(INTRO!$E$50="","",ROUND($D21*INTRO!$E$50,0)) -> 168865 | I21: 1 | K21: =IF(INTRO!$E$37="Endemic",IF($H21>0,IF($H21=4,"Unknown",IF($H21=99,"Stopped",$D21)),0),"Not required") -> Not required | L21: =IF(INTRO!$E$41="Endemic", IF(AND($I21>1, $I21<5), IF($I21=4, "Unknown", E21+F21), 0),"Not required") -> 0 | M21: =IF(INTRO!$E$43="Endemic", IF(AND($J21>0,$J21<5), IF($J21=4,"Unknown", IF($J21=1, $F21*0.33, IF($J21=2, $F21*0.5+$G21*0.2, SUM(F21:G21)))), 0),"Not required") -> Not required | O21: 0 | T21: 4300 | U21: Kweneng East | W21: TRUE
A22: =IF(INTRO!$E$33<>0,INTRO!$E$33, " ") -> Botswana | C22: KWENENG WEST | D22: 51534 | E22: =IF(INTRO!$E$48="","",ROUND($D22*INTRO!$E$48,0)) -> 5153 | F22: =IF(INTRO!$E$49="","",ROUND($D22*INTRO!$E$49,0)) -> 4638 | G22: =IF(INTRO!$E$50="","",ROUND($D22*INTRO!$E$50,0)) -> 31436 | I22: 1 | K22: =IF(INTRO!$E$37="Endemic",IF($H22>0,IF($H22=4,"Unknown",IF($H22=99,"Stopped",$D22)),0),"Not required") -> Not required | L22: =IF(INTRO!$E$41="Endemic", IF(AND($I22>1, $I22<5), IF($I22=4, "Unknown", E22+F22), 0),"Not required") -> 0 | M22: =IF(INTRO!$E$43="Endemic", IF(AND($J22>0,$J22<5), IF($J22=4,"Unknown", IF($J22=1, $F22*0.33, IF($J22=2, $F22*0.5+$G22*0.2, SUM(F22:G22)))), 0),"Not required") -> Not required | O22: 0 | T22: 4301 | U22: Kweneng West | W22: TRUE
A23: =IF(INTRO!$E$33<>0,INTRO!$E$33, " ") -> Botswana | C23: LOBATSE | D23: 34829 | E23: =IF(INTRO!$E$48="","",ROUND($D23*INTRO!$E$48,0)) -> 3483 | F23: =IF(INTRO!$E$49="","",ROUND($D23*INTRO!$E$49,0)) -> 3135 | G23: =IF(INTRO!$E$50="","",ROUND($D23*INTRO!$E$50,0)) -> 21246 | I23: 2 | K23: =IF(INTRO!$E$37="Endemic",IF($H23>0,IF($H23=4,"Unknown",IF($H23=99,"Stopped",$D23)),0),"Not required") -> Not required | L23: =IF(INTRO!$E$41="Endemic", IF(AND($I23>1, $I23<5), IF($I23=4, "Unknown", E23+F23), 0),"Not required") -> 6618 | M23: =IF(INTRO!$E$43="Endemic", IF(AND($J23>0,$J23<5), IF($J23=4,"Unknown", IF($J23=1, $F23*0.33, IF($J23=2, $F23*0.5+$G23*0.2, SUM(F23:G23)))), 0),"Not required") -> Not required | O23: 1 | T23: 4308 | U23: Lobatse | W23: TRUE
A24: =IF(INTRO!$E$33<>0,INTRO!$E$33, " ") -> Botswana | C24: MABUTSANE | D24: 6642 | E24: =IF(INTRO!$E$48="","",ROUND($D24*INTRO!$E$48,0)) -> 664 | F24: =IF(INTRO!$E$49="","",ROUND($D24*INTRO!$E$49,0)) -> 598 | G24: =IF(INTRO!$E$50="","",ROUND($D24*INTRO!$E$50,0)) -> 4052 | I24: 2 | K24: =IF(INTRO!$E$37="Endemic",IF($H24>0,IF($H24=4,"Unknown",IF($H24=99,"Stopped",$D24)),0),"Not required") -> Not required | L24: =IF(INTRO!$E$41="Endemic", IF(AND($I24>1, $I24<5), IF($I24=4, "Unknown", E24+F24), 0),"Not required") -> 1262 | M24: =IF(INTRO!$E$43="Endemic", IF(AND($J24>0,$J24<5), IF($J24=4,"Unknown", IF($J24=1, $F24*0.33, IF($J24=2, $F24*0.5+$G24*0.2, SUM(F24:G24)))), 0),"Not required") -> Not required | O24: 1 | T24: 4292 | U24: Mabutsane | W24: TRUE
A25: =IF(INTRO!$E$33<>0,INTRO!$E$33, " ") -> Botswana | C25: MAHALAPYE | D25: 128170 | E25: =IF(INTRO!$E$48="","",ROUND($D25*INTRO!$E$48,0)) -> 12817 | F25: =IF(INTRO!$E$49="","",ROUND($D25*INTRO!$E$49,0)) -> 11535 | G25: =IF(INTRO!$E$50="","",ROUND($D25*INTRO!$E$50,0)) -> 78184 | I25: 2 | K25: =IF(INTRO!$E$37="Endemic",IF($H25>0,IF($H25=4,"Unknown",IF($H25=99,"Stopped",$D25)),0),"Not required") -> Not required | L25: =IF(INTRO!$E$41="Endemic", IF(AND($I25>1, $I25<5), IF($I25=4, "Unknown", E25+F25), 0),"Not required") -> 24352 | M25: =IF(INTRO!$E$43="Endemic", IF(AND($J25>0,$J25<5), IF($J25=4,"Unknown", IF($J25=1, $F25*0.33, IF($J25=2, $F25*0.5+$G25*0.2, SUM(F25:G25)))), 0),"Not required") -> Not required | O25: 1 | T25: 4313 | U25: Mahalapye | W25: TRUE
A26: =IF(INTRO!$E$33<>0,INTRO!$E$33, " ") -> Botswana | C26: NGAMILAND | D26: 97398 | E26: =IF(INTRO!$E$48="","",ROUND($D26*INTRO!$E$48,0)) -> 9740 | F26: =IF(INTRO!$E$49="","",ROUND($D26*INTRO!$E$49,0)) -> 8766 | G26: =IF(INTRO!$E$50="","",ROUND($D26*INTRO!$E$50,0)) -> 59413 | I26: 2 | K26: =IF(INTRO!$E$37="Endemic",IF($H26>0,IF($H26=4,"Unknown",IF($H26=99,"Stopped",$D26)),0),"Not required") -> Not required | L26: =IF(INTRO!$E$41="Endemic", IF(AND($I26>1, $I26<5), IF($I26=4, "Unknown", E26+F26), 0),"Not required") -> 18506 | M26: =IF(INTRO!$E$43="Endemic", IF(AND($J26>0,$J26<5), IF($J26=4,"Unknown", IF($J26=1, $F26*0.33, IF($J26=2, $F26*0.5+$G26*0.2, SUM(F26:G26)))), 0),"Not required") -> Not required | O26: 1 | T26: 4305 | U26: Ngamiland | W26: TRUE
A27: =IF(INTRO!$E$33<>0,INTRO!$E$33, " ") -> Botswana | C27: NORTH EAST | D27: 64976 | E27: =IF(INTRO!$E$48="","",ROUND($D27*INTRO!$E$48,0)) -> 6498 | F27: =IF(INTRO!$E$49="","",ROUND($D27*INTRO!$E$49,0)) -> 5848 | G27: =IF(INTRO!$E$50="","",ROUND($D27*INTRO!$E$50,0)) -> 39635 | I27: 1 | K27: =IF(INTRO!$E$37="Endemic",IF($H27>0,IF($H27=4,"Unknown",IF($H27=99,"Stopped",$D27)),0),"Not required") -> Not required | L27: =IF(INTRO!$E$41="Endemic", IF(AND($I27>1, $I27<5), IF($I27=4, "Unknown", E27+F27), 0),"Not required") -> 0 | M27: =IF(INTRO!$E$43="Endemic", IF(AND($J27>0,$J27<5), IF($J27=4,"Unknown", IF($J27=1, $F27*0.33, IF($J27=2, $F27*0.5+$G27*0.2, SUM(F27:G27)))), 0),"Not required") -> Not required | O27: 0 | T27: 4303 | U27: North East | W27: TRUE
A28: =IF(INTRO!$E$33<>0,INTRO!$E$33, " ") -> Botswana | C28: OKAVANGO | D28: 64067 | E28: =IF(INTRO!$E$48="","",ROUND($D28*INTRO!$E$48,0)) -> 6407 | F28: =IF(INTRO!$E$49="","",ROUND($D28*INTRO!$E$49,0)) -> 5766 | G28: =IF(INTRO!$E$50="","",ROUND($D28*INTRO!$E$50,0)) -> 39081 | I28: 2 | K28: =IF(INTRO!$E$37="Endemic",IF($H28>0,IF($H28=4,"Unknown",IF($H28=99,"Stopped",$D28)),0),"Not required") -> Not required | L28: =IF(INTRO!$E$41="Endemic", IF(AND($I28>1, $I28<5), IF($I28=4, "Unknown", E28+F28), 0),"Not required") -> 12173 | M28: =IF(INTRO!$E$43="Endemic", IF(AND($J28>0,$J28<5), IF($J28=4,"Unknown", IF($J28=1, $F28*0.33, IF($J28=2, $F28*0.5+$G28*0.2, SUM(F28:G28)))), 0),"Not required") -> Not required | O28: 1 | T28: 4306 | U28: Okavango | W28: TRUE
A29: =IF(INTRO!$E$33<>0,INTRO!$E$33, " ") -> Botswana | C29: SELIBE PHIKWE | D29: 194614 | E29: =IF(INTRO!$E$48="","",ROUND($D29*INTRO!$E$48,0)) -> 19461 | F29: =IF(INTRO!$E$49="","",ROUND($D29*INTRO!$E$49,0)) -> 17515 | G29: =IF(INTRO!$E$50="","",ROUND($D29*INTRO!$E$50,0)) -> 118715 | I29: 2 | K29: =IF(INTRO!$E$37="Endemic",IF($H29>0,IF($H29=4,"Unknown",IF($H29=99,"Stopped",$D29)),0),"Not required") -> Not required | L29: =IF(INTRO!$E$41="Endemic", IF(AND($I29>1, $I29<5), IF($I29=4, "Unknown", E29+F29), 0),"Not required") -> 36976 | M29: =IF(INTRO!$E$43="Endemic", IF(AND($J29>0,$J29<5), IF($J29=4,"Unknown", IF($J29=1, $F29*0.33, IF($J29=2, $F29*0.5+$G29*0.2, SUM(F29:G29)))), 0),"Not required") -> Not required | O29: 1 | T29: 4293 | U29: Selibe Phikwe | W29: TRUE
A30: =IF(INTRO!$E$33<>0,INTRO!$E$33, " ") -> Botswana | C30: SEROWE / PALAPYE | D30: 53275 | E30: =IF(INTRO!$E$48="","",ROUND($D30*INTRO!$E$48,0)) -> 5328 | F30: =IF(INTRO!$E$49="","",ROUND($D30*INTRO!$E$49,0)) -> 4795 | G30: =IF(INTRO!$E$50="","",ROUND($D30*INTRO!$E$50,0)) -> 32498 | I30: 1 | K30: =IF(INTRO!$E$37="Endemic",IF($H30>0,IF($H30=4,"Unknown",IF($H30=99,"Stopped",$D30)),0),"Not required") -> Not required | L30: =IF(INTRO!$E$41="Endemic", IF(AND($I30>1, $I30<5), IF($I30=4, "Unknown", E30+F30), 0),"Not required") -> 0 | M30: =IF(INTRO!$E$43="Endemic", IF(AND($J30>0,$J30<5), IF($J30=4,"Unknown", IF($J30=1, $F30*0.33, IF($J30=2, $F30*0.5+$G30*0.2, SUM(F30:G30)))), 0),"Not required") -> Not required | O30: 0 | T30: 4294 | U30: Serowe Palapye | W30: FALSE
A31: =IF(INTRO!$E$33<>0,INTRO!$E$33, " ") -> Botswana | C31: SOUTH EAST | D31: 52498 | E31: =IF(INTRO!$E$48="","",ROUND($D31*INTRO!$E$48,0)) -> 5250 | F31: =IF(INTRO!$E$49="","",ROUND($D31*INTRO!$E$49,0)) -> 4725 | G31: =IF(INTRO!$E$50="","",ROUND($D31*INTRO!$E$50,0)) -> 32024 | I31: 1 | K31: =IF(INTRO!$E$37="Endemic",IF($H31>0,IF($H31=4,"Unknown",IF($H31=99,"Stopped",$D31)),0),"Not required") -> Not required | L31: =IF(INTRO!$E$41="Endemic", IF(AND($I31>1, $I31<5), IF($I31=4, "Unknown", E31+F31), 0),"Not required") -> 0 | M31: =IF(INTRO!$E$43="Endemic", IF(AND($J31>0,$J31<5), IF($J31=4,"Unknown", IF($J31=1, $F31*0.33, IF($J31=2, $F31*0.5+$G31*0.2, SUM(F31:G31)))), 0),"Not required") -> Not required | O31: 0 | T31: 4309 | U31: South East | W31: TRUE
A32: =IF(INTRO!$E$33<>0,INTRO!$E$33, " ") -> Botswana | C32: TUTUME | D32: 127562 | E32: =IF(INTRO!$E$48="","",ROUND($D32*INTRO!$E$48,0)) -> 12756 | F32: =IF(INTRO!$E$49="","",ROUND($D32*INTRO!$E$49,0)) -> 11481 | G32: =IF(INTRO!$E$50="","",ROUND($D32*INTRO!$E$50,0)) -> 77813 | I32: 1 | K32: =IF(INTRO!$E$37="Endemic",IF($H32>0,IF($H32=4,"Unknown",IF($H32=99,"Stopped",$D32)),0),"Not required") -> Not required | L32: =IF(INTRO!$E$41="Endemic", IF(AND($I32>1, $I32<5), IF($I32=4, "Unknown", E32+F32), 0),"Not required") -> 0 | M32: =IF(INTRO!$E$43="Endemic", IF(AND($J32>0,$J32<5), IF($J32=4,"Unknown", IF($J32=1, $F32*0.33, IF($J32=2, $F32*0.5+$G32*0.2, SUM(F32:G32)))), 0),"Not required") -> Not required | O32: 0 | T32: 4295 | U32: Tutume | W32: TRUE

Sheet DEC
A1: Diethylcarbamazine citrate (DEC)
A2: Administrative structure, eligible population by age group, treatment plan and information about tablets
A4: TOTAL | D4: =SUM(D$9:D$1000) -> 0 | E4: =SUM(E$9:E$1000) -> 0 | F4: =SUM(F$9:F$1000) -> 0 | G4: =SUM(G$9:G$1000) -> 0 | I4: =SUM(I$9:I$1000) -> 0 | J4: =SUM(J$9:J$1000) -> 0 | K4: =SUM(K$9:K$1000) -> 0 | L4: =SUM(L$9:L$1000) -> 0 | M4: =SUM(M$9:M$1000) -> 0
A6: Country administrative structure | D6: Population requiring treatment with DEC | H6: Treatment plan | I6: Target population | J6: Diethylcarbamazine citrate (DEC)
A7: Country | B7: Province/State | C7: District | D7: PreSAC | E7: SAC | F7: Adults | G7: Total | H7: LF | I7: LF | J7: Total required | K7: Remaining in stock | L7: Tablets to be procured | M7: Bottle (100 mg) 1000 tablets
A9: =IF(INTRO!$E$37="Non-endemic"," ", IF(COUNTRY_INFO!A9=0," ",COUNTRY_INFO!A9)) ->  | B9: =IF(INTRO!$E$37="Non-endemic"," ", IF(COUNTRY_INFO!B9=0," ",COUNTRY_INFO!B9)) ->  | C9: =IF(INTRO!$E$37="Non-endemic"," ", IF(COUNTRY_INFO!C9=0," ",COUNTRY_INFO!C9)) ->  | D9: =IF(INTRO!$E$37="Non-endemic",0,IF(COUNTRY_INFO!$H9=1,COUNTRY_INFO!E9,0)) -> 0 | E9: =IF(INTRO!$E$37="Non-endemic",0,IF(COUNTRY_INFO!$H9=1,COUNTRY_INFO!F9,0)) -> 0 | F9: =IF(INTRO!$E$37="Non-endemic",0,IF(COUNTRY_INFO!$H9=1,COUNTRY_INFO!G9,0)) -> 0 | G9: =SUM(D9:F9) -> 0 | H9: =IF(INTRO!$E$37="Non-endemic","Not required",COUNTRY_INFO!N9) -> Not required | I9: =IF(H9=1,G9,0) -> 0 | J9: =IF(I9>0,I9*2.5,0) -> 0 | L9: =IF($J9>$K9,$J9-$K9,0) -> 0 | M9: =ROUNDUP($J9/1000,0) -> 0
A10: =IF(INTRO!$E$37="Non-endemic"," ", IF(COUNTRY_INFO!A10=0," ",COUNTRY_INFO!A10)) ->  | B10: =IF(INTRO!$E$37="Non-endemic"," ", IF(COUNTRY_INFO!B10=0," ",COUNTRY_INFO!B10)) ->  | C10: =IF(INTRO!$E$37="Non-endemic"," ", IF(COUNTRY_INFO!C10=0," ",COUNTRY_INFO!C10)) ->  | D10: =IF(INTRO!$E$37="Non-endemic",0,IF(COUNTRY_INFO!$H10=1,COUNTRY_INFO!E10,0)) -> 0 | E10: =IF(INTRO!$E$37="Non-endemic",0,IF(COUNTRY_INFO!$H10=1,COUNTRY_INFO!F10,0)) -> 0 | F10: =IF(INTRO!$E$37="Non-endemic",0,IF(COUNTRY_INFO!$H10=1,COUNTRY_INFO!G10,0)) -> 0 | G10: 0 | H10: =IF(INTRO!$E$37="Non-endemic","Not required",COUNTRY_INFO!N10) -> Not required | I10: 0 | J10: 0 | L10: 0 | M10: 0
A11: =IF(INTRO!$E$37="Non-endemic"," ", IF(COUNTRY_INFO!A11=0," ",COUNTRY_INFO!A11)) ->  | B11: =IF(INTRO!$E$37="Non-endemic"," ", IF(COUNTRY_INFO!B11=0," ",COUNTRY_INFO!B11)) ->  | C11: =IF(INTRO!$E$37="Non-endemic"," ", IF(COUNTRY_INFO!C11=0," ",COUNTRY_INFO!C11)) ->  | D11: =IF(INTRO!$E$37="Non-endemic",0,IF(COUNTRY_INFO!$H11=1,COUNTRY_INFO!E11,0)) -> 0 | E11: =IF(INTRO!$E$37="Non-endemic",0,IF(COUNTRY_INFO!$H11=1,COUNTRY_INFO!F11,0)) -> 0 | F11: =IF(INTRO!$E$37="Non-endemic",0,IF(COUNTRY_INFO!$H11=1,COUNTRY_INFO!G11,0)) -> 0 | G11: 0 | H11: =IF(INTRO!$E$37="Non-endemic","Not required",COUNTRY_INFO!N11) -> Not required | I11: 0 | J11: 0 | L11: 0 | M11: 0
A12: =IF(INTRO!$E$37="Non-endemic"," ", IF(COUNTRY_INFO!A12=0," ",COUNTRY_INFO!A12)) ->  | B12: =IF(INTRO!$E$37="Non-endemic"," ", IF(COUNTRY_INFO!B12=0," ",COUNTRY_INFO!B12)) ->  | C12: =IF(INTRO!$E$37="Non-endemic"," ", IF(COUNTRY_INFO!C12=0," ",COUNTRY_INFO!C12)) ->  | D12: =IF(INTRO!$E$37="Non-endemic",0,IF(COUNTRY_INFO!$H12=1,COUNTRY_INFO!E12,0)) -> 0 | E12: =IF(INTRO!$E$37="Non-endemic",0,IF(COUNTRY_INFO!$H12=1,COUNTRY_INFO!F12,0)) -> 0 | F12: =IF(INTRO!$E$37="Non-endemic",0,IF(COUNTRY_INFO!$H12=1,COUNTRY_INFO!G12,0)) -> 0 | G12: 0 | H12: =IF(INTRO!$E$37="Non-endemic","Not required",COUNTRY_INFO!N12) -> Not required | I12: 0 | J12: 0 | L12: 0 | M12: 0
A13: =IF(INTRO!$E$37="Non-endemic"," ", IF(COUNTRY_INFO!A13=0," ",COUNTRY_INFO!A13)) ->  | B13: =IF(INTRO!$E$37="Non-endemic"," ", IF(COUNTRY_INFO!B13=0," ",COUNTRY_INFO!B13)) ->  | C13: =IF(INTRO!$E$37="Non-endemic"," ", IF(COUNTRY_INFO!C13=0," ",COUNTRY_INFO!C13)) ->  | D13: =IF(INTRO!$E$37="Non-endemic",0,IF(COUNTRY_INFO!$H13=1,COUNTRY_INFO!E13,0)) -> 0 | E13: =IF(INTRO!$E$37="Non-endemic",0,IF(COUNTRY_INFO!$H13=1,COUNTRY_INFO!F13,0)) -> 0 | F13: =IF(INTRO!$E$37="Non-endemic",0,IF(COUNTRY_INFO!$H13=1,COUNTRY_INFO!G13,0)) -> 0 | G13: 0 | H13: =IF(INTRO!$E$37="Non-endemic","Not required",COUNTRY_INFO!N13) -> Not required | I13: 0 | J13: 0 | L13: 0 | M13: 0
A14: =IF(INTRO!$E$37="Non-endemic"," ", IF(COUNTRY_INFO!A14=0," ",COUNTRY_INFO!A14)) ->  | B14: =IF(INTRO!$E$37="Non-endemic"," ", IF(COUNTRY_INFO!B14=0," ",COUNTRY_INFO!B14)) ->  | C14: =IF(INTRO!$E$37="Non-endemic"," ", IF(COUNTRY_INFO!C14=0," ",COUNTRY_INFO!C14)) ->  | D14: =IF(INTRO!$E$37="Non-endemic",0,IF(COUNTRY_INFO!$H14=1,COUNTRY_INFO!E14,0)) -> 0 | E14: =IF(INTRO!$E$37="Non-endemic",0,IF(COUNTRY_INFO!$H14=1,COUNTRY_INFO!F14,0)) -> 0 | F14: =IF(INTRO!$E$37="Non-endemic",0,IF(COUNTRY_INFO!$H14=1,COUNTRY_INFO!G14,0)) -> 0 | G14: 0 | H14: =IF(INTRO!$E$37="Non-endemic","Not required",COUNTRY_INFO!N14) -> Not required | I14: 0 | J14: 0 | L14: 0 | M14: 0
A15: =IF(INTRO!$E$37="Non-endemic"," ", IF(COUNTRY_INFO!A15=0," ",COUNTRY_INFO!A15)) ->  | B15: =IF(INTRO!$E$37="Non-endemic"," ", IF(COUNTRY_INFO!B15=0," ",COUNTRY_INFO!B15)) ->  | C15: =IF(INTRO!$E$37="Non-endemic"," ", IF(COUNTRY_INFO!C15=0," ",COUNTRY_INFO!C15)) ->  | D15: =IF(INTRO!$E$37="Non-endemic",0,IF(COUNTRY_INFO!$H15=1,COUNTRY_INFO!E15,0)) -> 0 | E15: =IF(INTRO!$E$37="Non-endemic",0,IF(COUNTRY_INFO!$H15=1,COUNTRY_INFO!F15,0)) -> 0 | F15: =IF(INTRO!$E$37="Non-endemic",0,IF(COUNTRY_INFO!$H15=1,COUNTRY_INFO!G15,0)) -> 0 | G15: 0 | H15: =IF(INTRO!$E$37="Non-endemic","Not required",COUNTRY_INFO!N15) -> Not required | I15: 0 | J15: 0 | L15: 0 | M15: 0
A16: =IF(INTRO!$E$37="Non-endemic"," ", IF(COUNTRY_INFO!A16=0," ",COUNTRY_INFO!A16)) ->  | B16: =IF(INTRO!$E$37="Non-endemic"," ", IF(COUNTRY_INFO!B16=0," ",COUNTRY_INFO!B16)) ->  | C16: =IF(INTRO!$E$37="Non-endemic"," ", IF(COUNTRY_INFO!C16=0," ",COUNTRY_INFO!C16)) ->  | D16: =IF(INTRO!$E$37="Non-endemic",0,IF(COUNTRY_INFO!$H16=1,COUNTRY_INFO!E16,0)) -> 0 | E16: =IF(INTRO!$E$37="Non-endemic",0,IF(COUNTRY_INFO!$H16=1,COUNTRY_INFO!F16,0)) -> 0 | F16: =IF(INTRO!$E$37="Non-endemic",0,IF(COUNTRY_INFO!$H16=1,COUNTRY_INFO!G16,0)) -> 0 | G16: 0 | H16: =IF(INTRO!$E$37="Non-endemic","Not required",COUNTRY_INFO!N16) -> Not required | I16: 0 | J16: 0 | L16: 0 | M16: 0
A17: =IF(INTRO!$E$37="Non-endemic"," ", IF(COUNTRY_INFO!A17=0," ",COUNTRY_INFO!A17)) ->  | B17: =IF(INTRO!$E$37="Non-endemic"," ", IF(COUNTRY_INFO!B17=0," ",COUNTRY_INFO!B17)) ->  | C17: =IF(INTRO!$E$37="Non-endemic"," ", IF(COUNTRY_INFO!C17=0," ",COUNTRY_INFO!C17)) ->  | D17: =IF(INTRO!$E$37="Non-endemic",0,IF(COUNTRY_INFO!$H17=1,COUNTRY_INFO!E17,0)) -> 0 | E17: =IF(INTRO!$E$37="Non-endemic",0,IF(COUNTRY_INFO!$H17=1,COUNTRY_INFO!F17,0)) -> 0 | F17: =IF(INTRO!$E$37="Non-endemic",0,IF(COUNTRY_INFO!$H17=1,COUNTRY_INFO!G17,0)) -> 0 | G17: 0 | H17: =IF(INTRO!$E$37="Non-endemic","Not required",COUNTRY_INFO!N17) -> Not required | I17: 0 | J17: 0 | L17: 0 | M17: 0
A18: =IF(INTRO!$E$37="Non-endemic"," ", IF(COUNTRY_INFO!A18=0," ",COUNTRY_INFO!A18)) ->  | B18: =IF(INTRO!$E$37="Non-endemic"," ", IF(COUNTRY_INFO!B18=0," ",COUNTRY_INFO!B18)) ->  | C18: =IF(INTRO!$E$37="Non-endemic"," ", IF(COUNTRY_INFO!C18=0," ",COUNTRY_INFO!C18)) ->  | D18: =IF(INTRO!$E$37="Non-endemic",0,IF(COUNTRY_INFO!$H18=1,COUNTRY_INFO!E18,0)) -> 0 | E18: =IF(INTRO!$E$37="Non-endemic",0,IF(COUNTRY_INFO!$H18=1,COUNTRY_INFO!F18,0)) -> 0 | F18: =IF(INTRO!$E$37="Non-endemic",0,IF(COUNTRY_INFO!$H18=1,COUNTRY_INFO!G18,0)) -> 0 | G18: 0 | H18: =IF(INTRO!$E$37="Non-endemic","Not required",COUNTRY_INFO!N18) -> Not required | I18: 0 | J18: 0 | L18: 0 | M18: 0
A19: =IF(INTRO!$E$37="Non-endemic"," ", IF(COUNTRY_INFO!A19=0," ",COUNTRY_INFO!A19)) ->  | B19: =IF(INTRO!$E$37="Non-endemic"," ", IF(COUNTRY_INFO!B19=0," ",COUNTRY_INFO!B19)) ->  | C19: =IF(INTRO!$E$37="Non-endemic"," ", IF(COUNTRY_INFO!C19=0," ",COUNTRY_INFO!C19)) ->  | D19: =IF(INTRO!$E$37="Non-endemic",0,IF(COUNTRY_INFO!$H19=1,COUNTRY_INFO!E19,0)) -> 0 | E19: =IF(INTRO!$E$37="Non-endemic",0,IF(COUNTRY_INFO!$H19=1,COUNTRY_INFO!F19,0)) -> 0 | F19: =IF(INTRO!$E$37="Non-endemic",0,IF(COUNTRY_INFO!$H19=1,COUNTRY_INFO!G19,0)) -> 0 | G19: 0 | H19: =IF(INTRO!$E$37="Non-endemic","Not required",COUNTRY_INFO!N19) -> Not required | I19: 0 | J19: 0 | L19: 0 | M19: 0
A20: =IF(INTRO!$E$37="Non-endemic"," ", IF(COUNTRY_INFO!A20=0," ",COUNTRY_INFO!A20)) ->  | B20: =IF(INTRO!$E$37="Non-endemic"," ", IF(COUNTRY_INFO!B20=0," ",COUNTRY_INFO!B20)) ->  | C20: =IF(INTRO!$E$37="Non-endemic"," ", IF(COUNTRY_INFO!C20=0," ",COUNTRY_INFO!C20)) ->  | D20: =IF(INTRO!$E$37="Non-endemic",0,IF(COUNTRY_INFO!$H20=1,COUNTRY_INFO!E20,0)) -> 0 | E20: =IF(INTRO!$E$37="Non-endemic",0,IF(COUNTRY_INFO!$H20=1,COUNTRY_INFO!F20,0)) -> 0 | F20: =IF(INTRO!$E$37="Non-endemic",0,IF(COUNTRY_INFO!$H20=1,COUNTRY_INFO!G20,0)) -> 0 | G20: 0 | H20: =IF(INTRO!$E$37="Non-endemic","Not required",COUNTRY_INFO!N20) -> Not required | I20: 0 | J20: 0 | L20: 0 | M20: 0
A21: =IF(INTRO!$E$37="Non-endemic"," ", IF(COUNTRY_INFO!A21=0," ",COUNTRY_INFO!A21)) ->  | B21: =IF(INTRO!$E$37="Non-endemic"," ", IF(COUNTRY_INFO!B21=0," ",COUNTRY_INFO!B21)) ->  | C21: =IF(INTRO!$E$37="Non-endemic"," ", IF(COUNTRY_INFO!C21=0," ",COUNTRY_INFO!C21)) ->  | D21: =IF(INTRO!$E$37="Non-endemic",0,IF(COUNTRY_INFO!$H21=1,COUNTRY_INFO!E21,0)) -> 0 | E21: =IF(INTRO!$E$37="Non-endemic",0,IF(COUNTRY_INFO!$H21=1,COUNTRY_INFO!F21,0)) -> 0 | F21: =IF(INTRO!$E$37="Non-endemic",0,IF(COUNTRY_INFO!$H21=1,COUNTRY_INFO!G21,0)) -> 0 | G21: 0 | H21: =IF(INTRO!$E$37="Non-endemic","Not required",COUNTRY_INFO!N21) -> Not required | I21: 0 | J21: 0 | L21: 0 | M21: 0
A22: =IF(INTRO!$E$37="Non-endemic"," ", IF(COUNTRY_INFO!A22=0," ",COUNTRY_INFO!A22)) ->  | B22: =IF(INTRO!$E$37="Non-endemic"," ", IF(COUNTRY_INFO!B22=0," ",COUNTRY_INFO!B22)) ->  | C22: =IF(INTRO!$E$37="Non-endemic"," ", IF(COUNTRY_INFO!C22=0," ",COUNTRY_INFO!C22)) ->  | D22: =IF(INTRO!$E$37="Non-endemic",0,IF(COUNTRY_INFO!$H22=1,COUNTRY_INFO!E22,0)) -> 0 | E22: =IF(INTRO!$E$37="Non-endemic",0,IF(COUNTRY_INFO!$H22=1,COUNTRY_INFO!F22,0)) -> 0 | F22: =IF(INTRO!$E$37="Non-endemic",0,IF(COUNTRY_INFO!$H22=1,COUNTRY_INFO!G22,0)) -> 0 | G22: 0 | H22: =IF(INTRO!$E$37="Non-endemic","Not required",COUNTRY_INFO!N22) -> Not required | I22: 0 | J22: 0 | L22: 0 | M22: 0
A23: =IF(INTRO!$E$37="Non-endemic"," ", IF(COUNTRY_INFO!A23=0," ",COUNTRY_INFO!A23)) ->  | B23: =IF(INTRO!$E$37="Non-endemic"," ", IF(COUNTRY_INFO!B23=0," ",COUNTRY_INFO!B23)) ->  | C23: =IF(INTRO!$E$37="Non-endemic"," ", IF(COUNTRY_INFO!C23=0," ",COUNTRY_INFO!C23)) ->  | D23: =IF(INTRO!$E$37="Non-endemic",0,IF(COUNTRY_INFO!$H23=1,COUNTRY_INFO!E23,0)) -> 0 | E23: =IF(INTRO!$E$37="Non-endemic",0,IF(COUNTRY_INFO!$H23=1,COUNTRY_INFO!F23,0)) -> 0 | F23: =IF(INTRO!$E$37="Non-endemic",0,IF(COUNTRY_INFO!$H23=1,COUNTRY_INFO!G23,0)) -> 0 | G23: 0 | H23: =IF(INTRO!$E$37="Non-endemic","Not required",COUNTRY_INFO!N23) -> Not required | I23: 0 | J23: 0 | L23: 0 | M23: 0
A24: =IF(INTRO!$E$37="Non-endemic"," ", IF(COUNTRY_INFO!A24=0," ",COUNTRY_INFO!A24)) ->  | B24: =IF(INTRO!$E$37="Non-endemic"," ", IF(COUNTRY_INFO!B24=0," ",COUNTRY_INFO!B24)) ->  | C24: =IF(INTRO!$E$37="Non-endemic"," ", IF(COUNTRY_INFO!C24=0," ",COUNTRY_INFO!C24)) ->  | D24: =IF(INTRO!$E$37="Non-endemic",0,IF(COUNTRY_INFO!$H24=1,COUNTRY_INFO!E24,0)) -> 0 | E24: =IF(INTRO!$E$37="Non-endemic",0,IF(COUNTRY_INFO!$H24=1,COUNTRY_INFO!F24,0)) -> 0 | F24: =IF(INTRO!$E$37="Non-endemic",0,IF(COUNTRY_INFO!$H24=1,COUNTRY_INFO!G24,0)) -> 0 | G24: 0 | H24: =IF(INTRO!$E$37="Non-endemic","Not required",COUNTRY_INFO!N24) -> Not required | I24: 0 | J24: 0 | L24: 0 | M24: 0
A25: =IF(INTRO!$E$37="Non-endemic"," ", IF(COUNTRY_INFO!A25=0," ",COUNTRY_INFO!A25)) ->  | B25: =IF(INTRO!$E$37="Non-endemic"," ", IF(COUNTRY_INFO!B25=0," ",COUNTRY_INFO!B25)) ->  | C25: =IF(INTRO!$E$37="Non-endemic"," ", IF(COUNTRY_INFO!C25=0," ",COUNTRY_INFO!C25)) ->  | D25: =IF(INTRO!$E$37="Non-endemic",0,IF(COUNTRY_INFO!$H25=1,COUNTRY_INFO!E25,0)) -> 0 | E25: =IF(INTRO!$E$37="Non-endemic",0,IF(COUNTRY_INFO!$H25=1,COUNTRY_INFO!F25,0)) -> 0 | F25: =IF(INTRO!$E$37="Non-endemic",0,IF(COUNTRY_INFO!$H25=1,COUNTRY_INFO!G25,0)) -> 0 | G25: 0 | H25: =IF(INTRO!$E$37="Non-endemic","Not required",COUNTRY_INFO!N25) -> Not required | I25: 0 | J25: 0 | L25: 0 | M25: 0
A26: =IF(INTRO!$E$37="Non-endemic"," ", IF(COUNTRY_INFO!A26=0," ",COUNTRY_INFO!A26)) ->  | B26: =IF(INTRO!$E$37="Non-endemic"," ", IF(COUNTRY_INFO!B26=0," ",COUNTRY_INFO!B26)) ->  | C26: =IF(INTRO!$E$37="Non-endemic"," ", IF(COUNTRY_INFO!C26=0," ",COUNTRY_INFO!C26)) ->  | D26: =IF(INTRO!$E$37="Non-endemic",0,IF(COUNTRY_INFO!$H26=1,COUNTRY_INFO!E26,0)) -> 0 | E26: =IF(INTRO!$E$37="Non-endemic",0,IF(COUNTRY_INFO!$H26=1,COUNTRY_INFO!F26,0)) -> 0 | F26: =IF(INTRO!$E$37="Non-endemic",0,IF(COUNTRY_INFO!$H26=1,COUNTRY_INFO!G26,0)) -> 0 | G26: 0 | H26: =IF(INTRO!$E$37="Non-endemic","Not required",COUNTRY_INFO!N26) -> Not required | I26: 0 | J26: 0 | L26: 0 | M26: 0
A27: =IF(INTRO!$E$37="Non-endemic"," ", IF(COUNTRY_INFO!A27=0," ",COUNTRY_INFO!A27)) ->  | B27: =IF(INTRO!$E$37="Non-endemic"," ", IF(COUNTRY_INFO!B27=0," ",COUNTRY_INFO!B27)) ->  | C27: =IF(INTRO!$E$37="Non-endemic"," ", IF(COUNTRY_INFO!C27=0," ",COUNTRY_INFO!C27)) ->  | D27: =IF(INTRO!$E$37="Non-endemic",0,IF(COUNTRY_INFO!$H27=1,COUNTRY_INFO!E27,0)) -> 0 | E27: =IF(INTRO!$E$37="Non-endemic",0,IF(COUNTRY_INFO!$H27=1,COUNTRY_INFO!F27,0)) -> 0 | F27: =IF(INTRO!$E$37="Non-endemic",0,IF(COUNTRY_INFO!$H27=1,COUNTRY_INFO!G27,0)) -> 0 | G27: 0 | H27: =IF(INTRO!$E$37="Non-endemic","Not required",COUNTRY_INFO!N27) -> Not required | I27: 0 | J27: 0 | L27: 0 | M27: 0
A28: =IF(INTRO!$E$37="Non-endemic"," ", IF(COUNTRY_INFO!A28=0," ",COUNTRY_INFO!A28)) ->  | B28: =IF(INTRO!$E$37="Non-endemic"," ", IF(COUNTRY_INFO!B28=0," ",COUNTRY_INFO!B28)) ->  | C28: =IF(INTRO!$E$37="Non-endemic"," ", IF(COUNTRY_INFO!C28=0," ",COUNTRY_INFO!C28)) ->  | D28: =IF(INTRO!$E$37="Non-endemic",0,IF(COUNTRY_INFO!$H28=1,COUNTRY_INFO!E28,0)) -> 0 | E28: =IF(INTRO!$E$37="Non-endemic",0,IF(COUNTRY_INFO!$H28=1,COUNTRY_INFO!F28,0)) -> 0 | F28: =IF(INTRO!$E$37="Non-endemic",0,IF(COUNTRY_INFO!$H28=1,COUNTRY_INFO!G28,0)) -> 0 | G28: 0 | H28: =IF(INTRO!$E$37="Non-endemic","Not required",COUNTRY_INFO!N28) -> Not required | I28: 0 | J28: 0 | L28: 0 | M28: 0
A29: =IF(INTRO!$E$37="Non-endemic"," ", IF(COUNTRY_INFO!A29=0," ",COUNTRY_INFO!A29)) ->  | B29: =IF(INTRO!$E$37="Non-endemic"," ", IF(COUNTRY_INFO!B29=0," ",COUNTRY_INFO!B29)) ->  | C29: =IF(INTRO!$E$37="Non-endemic"," ", IF(COUNTRY_INFO!C29=0," ",COUNTRY_INFO!C29)) ->  | D29: =IF(INTRO!$E$37="Non-endemic",0,IF(COUNTRY_INFO!$H29=1,COUNTRY_INFO!E29,0)) -> 0 | E29: =IF(INTRO!$E$37="Non-endemic",0,IF(COUNTRY_INFO!$H29=1,COUNTRY_INFO!F29,0)) -> 0 | F29: =IF(INTRO!$E$37="Non-endemic",0,IF(COUNTRY_INFO!$H29=1,COUNTRY_INFO!G29,0)) -> 0 | G29: 0 | H29: =IF(INTRO!$E$37="Non-endemic","Not required",COUNTRY_INFO!N29) -> Not required | I29: 0 | J29: 0 | L29: 0 | M29: 0
A30: =IF(INTRO!$E$37="Non-endemic"," ", IF(COUNTRY_INFO!A30=0," ",COUNTRY_INFO!A30)) ->  | B30: =IF(INTRO!$E$37="Non-endemic"," ", IF(COUNTRY_INFO!B30=0," ",COUNTRY_INFO!B30)) ->  | C30: =IF(INTRO!$E$37="Non-endemic"," ", IF(COUNTRY_INFO!C30=0," ",COUNTRY_INFO!C30)) ->  | D30: =IF(INTRO!$E$37="Non-endemic",0,IF(COUNTRY_INFO!$H30=1,COUNTRY_INFO!E30,0)) -> 0 | E30: =IF(INTRO!$E$37="Non-endemic",0,IF(COUNTRY_INFO!$H30=1,COUNTRY_INFO!F30,0)) -> 0 | F30: =IF(INTRO!$E$37="Non-endemic",0,IF(COUNTRY_INFO!$H30=1,COUNTRY_INFO!G30,0)) -> 0 | G30: 0 | H30: =IF(INTRO!$E$37="Non-endemic","Not required",COUNTRY_INFO!N30) -> Not required | I30: 0 | J30: 0 | L30: 0 | M30: 0
A31: =IF(INTRO!$E$37="Non-endemic"," ", IF(COUNTRY_INFO!A31=0," ",COUNTRY_INFO!A31)) ->  | B31: =IF(INTRO!$E$37="Non-endemic"," ", IF(COUNTRY_INFO!B31=0," ",COUNTRY_INFO!B31)) ->  | C31: =IF(INTRO!$E$37="Non-endemic"," ", IF(COUNTRY_INFO!C31=0," ",COUNTRY_INFO!C31)) ->  | D31: =IF(INTRO!$E$37="Non-endemic",0,IF(COUNTRY_INFO!$H31=1,COUNTRY_INFO!E31,0)) -> 0 | E31: =IF(INTRO!$E$37="Non-endemic",0,IF(COUNTRY_INFO!$H31=1,COUNTRY_INFO!F31,0)) -> 0 | F31: =IF(INTRO!$E$37="Non-endemic",0,IF(COUNTRY_INFO!$H31=1,COUNTRY_INFO!G31,0)) -> 0 | G31: 0 | H31: =IF(INTRO!$E$37="Non-endemic","Not required",COUNTRY_INFO!N31) -> Not required | I31: 0 | J31: 0 | L31: 0 | M31: 0
A32: =IF(INTRO!$E$37="Non-endemic"," ", IF(COUNTRY_INFO!A32=0," ",COUNTRY_INFO!A32)) ->  | B32: =IF(INTRO!$E$37="Non-endemic"," ", IF(COUNTRY_INFO!B32=0," ",COUNTRY_INFO!B32)) ->  | C32: =IF(INTRO!$E$37="Non-endemic"," ", IF(COUNTRY_INFO!C32=0," ",COUNTRY_INFO!C32)) ->  | D32: =IF(INTRO!$E$37="Non-endemic",0,IF(COUNTRY_INFO!$H32=1,COUNTRY_INFO!E32,0)) -> 0 | E32: =IF(INTRO!$E$37="Non-endemic",0,IF(COUNTRY_INFO!$H32=1,COUNTRY_INFO!F32,0)) -> 0 | F32: =IF(INTRO!$E$37="Non-endemic",0,IF(COUNTRY_INFO!$H32=1,COUNTRY_INFO!G32,0)) -> 0 | G32: 0 | H32: =IF(INTRO!$E$37="Non-endemic","Not required",COUNTRY_INFO!N32) -> Not required | I32: 0 | J32: 0 | L32: 0 | M32: 0

Sheet ALB_MBD
A1: Albendazole (ALB) and Mebendazole (MBD)
A2: Administrative structure, eligible population by age group, treatment plan and information about tablets
A4: TOTAL | D4: =SUM(D$9:D$1000) -> 208895 | E4: =SUM(E$9:E$1000) -> 188008 | F4: =SUM(F$9:F$1000) -> 396903 | I4: =SUM(I$9:I$1000) -> 0 | K4: =SUM(K$9:K$1000) -> 63595 | L4: =SUM(L$9:L$1000) -> 57238 | M4: =SUM(M$9:M$1000) -> 0 | N4: =SUM(N$9:N$1000) -> 120833 | O4: =SUM(O$9:O$1000) -> 0 | P4: =SUM(P$9:P$1000) -> 0 | Q4: 0 | R4: 0 | S4: 0 | T4: 0 | U4: 0 | V4: 0 | W4: 57238 | X4: 289 | Y4: 0 | Z4: 0 | AA4: 0
A6: Country administrative structure | D6: Population requiring treatment with ALB/MBD | G6: Treatment plan | I6: People covered by PELF with ALB | J6: Select medicine for treatment of STH | K6: Target population | S6: Albendazole (ALB) | Y6: Mebendazole (MBD)
A7: Country | B7: Province/State | C7: District | D7: PreSAC | E7: SAC | F7: Total | G7: LF | H7: STH | K7: STH (ALB) | O7: STH (MBD) | S7: Remaining in stock (LF) | T7: Tablets to be procured (LF) | U7: Bottle (400 mg) 200 tablets (LF) | V7: Remaining in stock (STH) | W7: Tablets to be procured for SAC (STH) | X7: Bottle (400 mg) 200 tablets (STH) | Y7: Remaining in stock | Z7: Tablets to be procured for SAC | AA7: Bottles (500 mg) 150 tablets
K8: PreSAC | L8: SAC | M8: Other | N8: Total | O8: PreSAC | P8: SAC | Q8: Other | R8: Total
A9: =IF(AND(INTRO!$E$37="Non-endemic",INTRO!$E$41="Non-endemic")," ",IF(COUNTRY_INFO!A9=0," ",COUNTRY_INFO!A9)) -> Botswana | B9: =IF(AND(INTRO!$E$37="Non-endemic",INTRO!$E$41="Non-endemic")," ",IF(COUNTRY_INFO!B9=0," ",COUNTRY_INFO!B9)) ->  | C9: =IF(AND(INTRO!$E$37="Non-endemic",INTRO!$E$41="Non-endemic")," ",IF(COUNTRY_INFO!C9=0," ",COUNTRY_INFO!C9)) -> BOBIRWA | D9: =IF(AND(INTRO!$E$37="Non-endemic",INTRO!$E$41="Non-endemic"),0,IF(AND(OR(COUNTRY_INFO!$H9=0,COUNTRY_INFO!$H9=4,COUNTRY_INFO!$H9=99),OR(COUNTRY_INFO!$I9=0,COUNTRY_INFO!$I9=4)),0,COUNTRY_INFO!$E9)) -> 0 | E9: =IF(AND(INTRO!$E$37="Non-endemic",INTRO!$E$41="Non-endemic"),0,IF(AND(OR(COUNTRY_INFO!$H9=0,COUNTRY_INFO!$H9=4,COUNTRY_INFO!$H9=99),OR(COUNTRY_INFO!$I9=0,COUNTRY_INFO!$I9=4)),0,COUNTRY_INFO!$F9)) -> 0 | F9: =SUM(D9:E9) -> 0 | G9: =IF(AND(INTRO!$E$37="Non-endemic",INTRO!$E$41="Non-endemic"),0,COUNTRY_INFO!N9) -> 0 | H9: =IF(AND(INTRO!$E$37="Non-endemic",INTRO!$E$41="Non-endemic"),0,COUNTRY_INFO!O9) -> 0 | I9: =IF($G9=1,DEC!I9,0) -> 0 | J9: ALB | K9: =IF($J9="ALB", IF($H9<>0, IF($I9=0, $D9*$H9, $D9*($H9-$G9)),0),0) -> 0 | L9: =IF($J9="ALB", IF($H9<>0, IF($I9=0, $E9*$H9, $E9*($H9-$G9)),0), 0) -> 0 | N9: =SUM(K9:M9) -> 0 | O9: =IF($J9="MBD", IF($H9<>0, IF($I9=0, $D9*$H9, $D9*($H9-$G9)),0),0) -> 0 | P9: =IF($J9="MBD", IF($H9<>0,IF($I9=0, $E9*$H9, $E9*($H9-$G9)),0), 0 ) -> 0 | R9: =SUM(O9:Q9) -> 0 | T9: =IF($I9>$S9, $I9-$S9,0) -> 0 | U9: =ROUNDUP($I9/200,0) -> 0 | W9: =IF($L9>$V9,$L9-$V9,0) -> 0 | X9: =ROUNDUP($L9/200,0) -> 0 | Z9: =IF($P9>$Y9,$P9-$Y9,0) -> 0 | AA9: =ROUNDUP($P9/150,0) -> 0
A10: =IF(AND(INTRO!$E$37="Non-endemic",INTRO!$E$41="Non-endemic")," ",IF(COUNTRY_INFO!A10=0," ",COUNTRY_INFO!A10)) -> Botswana | B10: =IF(AND(INTRO!$E$37="Non-endemic",INTRO!$E$41="Non-endemic")," ",IF(COUNTRY_INFO!B10=0," ",COUNTRY_INFO!B10)) ->  | C10: =IF(AND(INTRO!$E$37="Non-endemic",INTRO!$E$41="Non-endemic")," ",IF(COUNTRY_INFO!C10=0," ",COUNTRY_INFO!C10)) -> BOTETI | D10: =IF(AND(INTRO!$E$37="Non-endemic",INTRO!$E$41="Non-endemic"),0,IF(AND(OR(COUNTRY_INFO!$H10=0,COUNTRY_INFO!$H10=4,COUNTRY_INFO!$H10=99),OR(COUNTRY_INFO!$I10=0,COUNTRY_INFO!$I10=4)),0,COUNTRY_INFO!$E10)) -> 7214 | E10: =IF(AND(INTRO!$E$37="Non-endemic",INTRO!$E$41="Non-endemic"),0,IF(AND(OR(COUNTRY_INFO!$H10=0,COUNTRY_INFO!$H10=4,COUNTRY_INFO!$H10=99),OR(COUNTRY_INFO!$I10=0,COUNTRY_INFO!$I10=4)),0,COUNTRY_INFO!$F10)) -> 6493 | F10: 13707 | G10: =IF(AND(INTRO!$E$37="Non-endemic",INTRO!$E$41="Non-endemic"),0,COUNTRY_INFO!N10) -> 0 | H10: =IF(AND(INTRO!$E$37="Non-endemic",INTRO!$E$41="Non-endemic"),0,COUNTRY_INFO!O10) -> 0 | I10: =IF($G10=1,DEC!I10,0) -> 0 | J10: ALB | K10: 0 | L10: 0 | N10: 0 | O10: 0 | P10: 0 | R10: 0 | T10: 0 | U10: 0 | W10: 0 | X10: 0 | Z10: 0 | AA10: 0
A11: =IF(AND(INTRO!$E$37="Non-endemic",INTRO!$E$41="Non-endemic")," ",IF(COUNTRY_INFO!A11=0," ",COUNTRY_INFO!A11)) -> Botswana | B11: =IF(AND(INTRO!$E$37="Non-endemic",INTRO!$E$41="Non-endemic")," ",IF(COUNTRY_INFO!B11=0," ",COUNTRY_INFO!B11)) ->  | C11: =IF(AND(INTRO!$E$37="Non-endemic",INTRO!$E$41="Non-endemic")," ",IF(COUNTRY_INFO!C11=0," ",COUNTRY_INFO!C11)) -> CHOBE | D11: =IF(AND(INTRO!$E$37="Non-endemic",INTRO!$E$41="Non-endemic"),0,IF(AND(OR(COUNTRY_INFO!$H11=0,COUNTRY_INFO!$H11=4,COUNTRY_INFO!$H11=99),OR(COUNTRY_INFO!$I11=0,COUNTRY_INFO!$I11=4)),0,COUNTRY_INFO!$E11)) -> 2517 | E11: =IF(AND(INTRO!$E$37="Non-endemic",INTRO!$E$41="Non-endemic"),0,IF(AND(OR(COUNTRY_INFO!$H11=0,COUNTRY_INFO!$H11=4,COUNTRY_INFO!$H11=99),OR(COUNTRY_INFO!$I11=0,COUNTRY_INFO!$I11=4)),0,COUNTRY_INFO!$F11)) -> 2266 | F11: 4783 | G11: =IF(AND(INTRO!$E$37="Non-endemic",INTRO!$E$41="Non-endemic"),0,COUNTRY_INFO!N11) -> 0 | H11: =IF(AND(INTRO!$E$37="Non-endemic",INTRO!$E$41="Non-endemic"),0,COUNTRY_INFO!O11) -> 2 | I11: =IF($G11=1,DEC!I11,0) -> 0 | J11: ALB | K11: 5034 | L11: 4532 | N11: 9566 | O11: 0 | P11: 0 | R11: 0 | T11: 0 | U11: 0 | W11: 4532 | X11: 23 | Z11: 0 | AA11: 0
A12: =IF(AND(INTRO!$E$37="Non-endemic",INTRO!$E$41="Non-endemic")," ",IF(COUNTRY_INFO!A12=0," ",COUNTRY_INFO!A12)) -> Botswana | B12: =IF(AND(INTRO!$E$37="Non-endemic",INTRO!$E$41="Non-endemic")," ",IF(COUNTRY_INFO!B12=0," ",COUNTRY_INFO!B12)) ->  | C12: =IF(AND(INTRO!$E$37="Non-endemic",INTRO!$E$41="Non-endemic")," ",IF(COUNTRY_INFO!C12=0," ",COUNTRY_INFO!C12)) -> FRANCISTOWN | D12: =IF(AND(INTRO!$E$37="Non-endemic",INTRO!$E$41="Non-endemic"),0,IF(AND(OR(COUNTRY_INFO!$H12=0,COUNTRY_INFO!$H12=4,COUNTRY_INFO!$H12=99),OR(COUNTRY_INFO!$I12=0,COUNTRY_INFO!$I12=4)),0,COUNTRY_INFO!$E12)) -> 14192 | E12: =IF(AND(INTRO!$E$37="Non-endemic",INTRO!$E$41="Non-endemic"),0,IF(AND(OR(COUNTRY_INFO!$H12=0,COUNTRY_INFO!$H12=4,COUNTRY_INFO!$H12=99),OR(COUNTRY_INFO!$I12=0,COUNTRY_INFO!$I12=4)),0,COUNTRY_INFO!$F12)) -> 12773 | F12: 26965 | G12: =IF(AND(INTRO!$E$37="Non-endemic",INTRO!$E$41="Non-endemic"),0,COUNTRY_INFO!N12) -> 0 | H12: =IF(AND(INTRO!$E$37="Non-endemic",INTRO!$E$41="Non-endemic"),0,COUNTRY_INFO!O12) -> 0 | I12: =IF($G12=1,DEC!I12,0) -> 0 | J12: ALB | K12: 0 | L12: 0 | N12: 0 | O12: 0 | P12: 0 | R12: 0 | T12: 0 | U12: 0 | W12: 0 | X12: 0 | Z12: 0 | AA12: 0
A13: =IF(AND(INTRO!$E$37="Non-endemic",INTRO!$E$41="Non-endemic")," ",IF(COUNTRY_INFO!A13=0," ",COUNTRY_INFO!A13)) -> Botswana | B13: =IF(AND(INTRO!$E$37="Non-endemic",INTRO!$E$41="Non-endemic")," ",IF(COUNTRY_INFO!B13=0," ",COUNTRY_INFO!B13)) ->  | C13: =IF(AND(INTRO!$E$37="Non-endemic",INTRO!$E$41="Non-endemic")," ",IF(COUNTRY_INFO!C13=0," ",COUNTRY_INFO!C13)) -> GABORONE | D13: =IF(AND(INTRO!$E$37="Non-endemic",INTRO!$E$41="Non-endemic"),0,IF(AND(OR(COUNTRY_INFO!$H13=0,COUNTRY_INFO!$H13=4,COUNTRY_INFO!$H13=99),OR(COUNTRY_INFO!$I13=0,COUNTRY_INFO!$I13=4)),0,COUNTRY_INFO!$E13)) -> 28602 | E13: =IF(AND(INTRO!$E$37="Non-endemic",INTRO!$E$41="Non-endemic"),0,IF(AND(OR(COUNTRY_INFO!$H13=0,COUNTRY_INFO!$H13=4,COUNTRY_INFO!$H13=99),OR(COUNTRY_INFO!$I13=0,COUNTRY_INFO!$I13=4)),0,COUNTRY_INFO!$F13)) -> 25742 | F13: 54344 | G13: =IF(AND(INTRO!$E$37="Non-endemic",INTRO!$E$41="Non-endemic"),0,COUNTRY_INFO!N13) -> 0 | H13: =IF(AND(INTRO!$E$37="Non-endemic",INTRO!$E$41="Non-endemic"),0,COUNTRY_INFO!O13) -> 0 | I13: =IF($G13=1,DEC!I13,0) -> 0 | J13: ALB | K13: 0 | L13: 0 | N13: 0 | O13: 0 | P13: 0 | R13: 0 | T13: 0 | U13: 0 | W13: 0 | X13: 0 | Z13: 0 | AA13: 0
A14: =IF(AND(INTRO!$E$37="Non-endemic",INTRO!$E$41="Non-endemic")," ",IF(COUNTRY_INFO!A14=0," ",COUNTRY_INFO!A14)) -> Botswana | B14: =IF(AND(INTRO!$E$37="Non-endemic",INTRO!$E$41="Non-endemic")," ",IF(COUNTRY_INFO!B14=0," ",COUNTRY_INFO!B14)) ->  | C14: =IF(AND(INTRO!$E$37="Non-endemic",INTRO!$E$41="Non-endemic")," ",IF(COUNTRY_INFO!C14=0," ",COUNTRY_INFO!C14)) -> GANTSI/CHARLESHILL | D14: =IF(AND(INTRO!$E$37="Non-endemic",INTRO!$E$41="Non-endemic"),0,IF(AND(OR(COUNTRY_INFO!$H14=0,COUNTRY_INFO!$H14=4,COUNTRY_INFO!$H14=99),OR(COUNTRY_INFO!$I14=0,COUNTRY_INFO!$I14=4)),0,COUNTRY_INFO!$E14)) -> 3558 | E14: =IF(AND(INTRO!$E$37="Non-endemic",INTRO!$E$41="Non-endemic"),0,IF(AND(OR(COUNTRY_INFO!$H14=0,COUNTRY_INFO!$H14=4,COUNTRY_INFO!$H14=99),OR(COUNTRY_INFO!$I14=0,COUNTRY_INFO!$I14=4)),0,COUNTRY_INFO!$F14)) -> 3202 | F14: 6760 | G14: =IF(AND(INTRO!$E$37="Non-endemic",INTRO!$E$41="Non-endemic"),0,COUNTRY_INFO!N14) -> 0 | H14: =IF(AND(INTRO!$E$37="Non-endemic",INTRO!$E$41="Non-endemic"),0,COUNTRY_INFO!O14) -> 0 | I14: =IF($G14=1,DEC!I14,0) -> 0 | J14: ALB | K14: 0 | L14: 0 | N14: 0 | O14: 0 | P14: 0 | R14: 0 | T14: 0 | U14: 0 | W14: 0 | X14: 0 | Z14: 0 | AA14: 0
A15: =IF(AND(INTRO!$E$37="Non-endemic",INTRO!$E$41="Non-endemic")," ",IF(COUNTRY_INFO!A15=0," ",COUNTRY_INFO!A15)) -> Botswana | B15: =IF(AND(INTRO!$E$37="Non-endemic",INTRO!$E$41="Non-endemic")," ",IF(COUNTRY_INFO!B15=0," ",COUNTRY_INFO!B15)) ->  | C15: =IF(AND(INTRO!$E$37="Non-endemic",INTRO!$E$41="Non-endemic")," ",IF(COUNTRY_INFO!C15=0," ",COUNTRY_INFO!C15)) -> GOODHOPE | D15: =IF(AND(INTRO!$E$37="Non-endemic",INTRO!$E$41="Non-endemic"),0,IF(AND(OR(COUNTRY_INFO!$H15=0,COUNTRY_INFO!$H15=4,COUNTRY_INFO!$H15=99),OR(COUNTRY_INFO!$I15=0,COUNTRY_INFO!$I15=4)),0,COUNTRY_INFO!$E15)) -> 5557 | E15: =IF(AND(INTRO!$E$37="Non-endemic",INTRO!$E$41="Non-endemic"),0,IF(AND(OR(COUNTRY_INFO!$H15=0,COUNTRY_INFO!$H15=4,COUNTRY_INFO!$H15=99),OR(COUNTRY_INFO!$I15=0,COUNTRY_INFO!$I15=4)),0,COUNTRY_INFO!$F15)) -> 5001 | F15: 10558 | G15: =IF(AND(INTRO!$E$37="Non-endemic",INTRO!$E$41="Non-endemic"),0,COUNTRY_INFO!N15) -> 0 | H15: =IF(AND(INTRO!$E$37="Non-endemic",INTRO!$E$41="Non-endemic"),0,COUNTRY_INFO!O15) -> 0 | I15: =IF($G15=1,DEC!I15,0) -> 0 | J15: ALB | K15: 0 | L15: 0 | N15: 0 | O15: 0 | P15: 0 | R15: 0 | T15: 0 | U15: 0 | W15: 0 | X15: 0 | Z15: 0 | AA15: 0
A16: =IF(AND(INTRO!$E$37="Non-endemic",INTRO!$E$41="Non-endemic")," ",IF(COUNTRY_INFO!A16=0," ",COUNTRY_INFO!A16)) -> Botswana | B16: =IF(AND(INTRO!$E$37="Non-endemic",INTRO!$E$41="Non-endemic")," ",IF(COUNTRY_INFO!B16=0," ",COUNTRY_INFO!B16)) ->  | C16: =IF(AND(INTRO!$E$37="Non-endemic",INTRO!$E$41="Non-endemic")," ",IF(COUNTRY_INFO!C16=0," ",COUNTRY_INFO!C16)) -> JWANENG | D16: =IF(AND(INTRO!$E$37="Non-endemic",INTRO!$E$41="Non-endemic"),0,IF(AND(OR(COUNTRY_INFO!$H16=0,COUNTRY_INFO!$H16=4,COUNTRY_INFO!$H16=99),OR(COUNTRY_INFO!$I16=0,COUNTRY_INFO!$I16=4)),0,COUNTRY_INFO!$E16)) -> 2753 | E16: =IF(AND(INTRO!$E$37="Non-endemic",INTRO!$E$41="Non-endemic"),0,IF(AND(OR(COUNTRY_INFO!$H16=0,COUNTRY_INFO!$H16=4,COUNTRY_INFO!$H16=99),OR(COUNTRY_INFO!$I16=0,COUNTRY_INFO!$I16=4)),0,COUNTRY_INFO!$F16)) -> 2478 | F16: 5231 | G16: =IF(AND(INTRO!$E$37="Non-endemic",INTRO!$E$41="Non-endemic"),0,COUNTRY_INFO!N16) -> 0 | H16: =IF(AND(INTRO!$E$37="Non-endemic",INTRO!$E$41="Non-endemic"),0,COUNTRY_INFO!O16) -> 1 | I16: =IF($G16=1,DEC!I16,0) -> 0 | J16: ALB | K16: 2753 | L16: 2478 | N16: 5231 | O16: 0 | P16: 0 | R16: 0 | T16: 0 | U16: 0 | W16: 2478 | X16: 13 | Z16: 0 | AA16: 0
A17: =IF(AND(INTRO!$E$37="Non-endemic",INTRO!$E$41="Non-endemic")," ",IF(COUNTRY_INFO!A17=0," ",COUNTRY_INFO!A17)) -> Botswana | B17: =IF(AND(INTRO!$E$37="Non-endemic",INTRO!$E$41="Non-endemic")," ",IF(COUNTRY_INFO!B17=0," ",COUNTRY_INFO!B17)) ->  | C17: =IF(AND(INTRO!$E$37="Non-endemic",INTRO!$E$41="Non-endemic")," ",IF(COUNTRY_INFO!C17=0," ",COUNTRY_INFO!C17)) -> KANYE/MOSHOPA | D17: =IF(AND(INTRO!$E$37="Non-endemic",INTRO!$E$41="Non-endemic"),0,IF(AND(OR(COUNTRY_INFO!$H17=0,COUNTRY_INFO!$H17=4,COUNTRY_INFO!$H17=99),OR(COUNTRY_INFO!$I17=0,COUNTRY_INFO!$I17=4)),0,COUNTRY_INFO!$E17)) -> 13935 | E17: =IF(AND(INTRO!$E$37="Non-endemic",INTRO!$E$41="Non-endemic"),0,IF(AND(OR(COUNTRY_INFO!$H17=0,COUNTRY_INFO!$H17=4,COUNTRY_INFO!$H17=99),OR(COUNTRY_INFO!$I17=0,COUNTRY_INFO!$I17=4)),0,COUNTRY_INFO!$F17)) -> 12542 | F17: 26477 | G17: =IF(AND(INTRO!$E$37="Non-endemic",INTRO!$E$41="Non-endemic"),0,COUNTRY_INFO!N17) -> 0 | H17: =IF(AND(INTRO!$E$37="Non-endemic",INTRO!$E$41="Non-endemic"),0,COUNTRY_INFO!O17) -> 0 | I17: =IF($G17=1,DEC!I17,0) -> 0 | J17: ALB | K17: 0 | L17: 0 | N17: 0 | O17: 0 | P17: 0 | R17: 0 | T17: 0 | U17: 0 | W17: 0 | X17: 0 | Z17: 0 | AA17: 0
A18: =IF(AND(INTRO!$E$37="Non-endemic",INTRO!$E$41="Non-endemic")," ",IF(COUNTRY_INFO!A18=0," ",COUNTRY_INFO!A18)) -> Botswana | B18: =IF(AND(INTRO!$E$37="Non-endemic",INTRO!$E$41="Non-endemic")," ",IF(COUNTRY_INFO!B18=0," ",COUNTRY_INFO!B18)) ->  | C18: =IF(AND(INTRO!$E$37="Non-endemic",INTRO!$E$41="Non-endemic")," ",IF(COUNTRY_INFO!C18=0," ",COUNTRY_INFO!C18)) -> KGALAGADI NORTH | D18: =IF(AND(INTRO!$E$37="Non-endemic",INTRO!$E$41="Non-endemic"),0,IF(AND(OR(COUNTRY_INFO!$H18=0,COUNTRY_INFO!$H18=4,COUNTRY_INFO!$H18=99),OR(COUNTRY_INFO!$I18=0,COUNTRY_INFO!$I18=4)),0,COUNTRY_INFO!$E18)) -> 2208 | E18: =IF(AND(INTRO!$E$37="Non-endemic",INTRO!$E$41="Non-endemic"),0,IF(AND(OR(COUNTRY_INFO!$H18=0,COUNTRY_INFO!$H18=4,COUNTRY_INFO!$H18=99),OR(COUNTRY_INFO!$I18=0,COUNTRY_INFO!$I18=4)),0,COUNTRY_INFO!$F18)) -> 1987 | F18: 4195 | G18: =IF(AND(INTRO!$E$37="Non-endemic",INTRO!$E$41="Non-endemic"),0,COUNTRY_INFO!N18) -> 0 | H18: =IF(AND(INTRO!$E$37="Non-endemic",INTRO!$E$41="Non-endemic"),0,COUNTRY_INFO!O18) -> 0 | I18: =IF($G18=1,DEC!I18,0) -> 0 | J18: ALB | K18: 0 | L18: 0 | N18: 0 | O18: 0 | P18: 0 | R18: 0 | T18: 0 | U18: 0 | W18: 0 | X18: 0 | Z18: 0 | AA18: 0
A19: =IF(AND(INTRO!$E$37="Non-endemic",INTRO!$E$41="Non-endemic")," ",IF(COUNTRY_INFO!A19=0," ",COUNTRY_INFO!A19)) -> Botswana | B19: =IF(AND(INTRO!$E$37="Non-endemic",INTRO!$E$41="Non-endemic")," ",IF(COUNTRY_INFO!B19=0," ",COUNTRY_INFO!B19)) ->  | C19: =IF(AND(INTRO!$E$37="Non-endemic",INTRO!$E$41="Non-endemic")," ",IF(COUNTRY_INFO!C19=0," ",COUNTRY_INFO!C19)) -> KGALAGADI SOUTH | D19: =IF(AND(INTRO!$E$37="Non-endemic",INTRO!$E$41="Non-endemic"),0,IF(AND(OR(COUNTRY_INFO!$H19=0,COUNTRY_INFO!$H19=4,COUNTRY_INFO!$H19=99),OR(COUNTRY_INFO!$I19=0,COUNTRY_INFO!$I19=4)),0,COUNTRY_INFO!$E19)) -> 3236 | E19: =IF(AND(INTRO!$E$37="Non-endemic",INTRO!$E$41="Non-endemic"),0,IF(AND(OR(COUNTRY_INFO!$H19=0,COUNTRY_INFO!$H19=4,COUNTRY_INFO!$H19=99),OR(COUNTRY_INFO!$I19=0,COUNTRY_INFO!$I19=4)),0,COUNTRY_INFO!$F19)) -> 2913 | F19: 6149 | G19: =IF(AND(INTRO!$E$37="Non-endemic",INTRO!$E$41="Non-endemic"),0,COUNTRY_INFO!N19) -> 0 | H19: =IF(AND(INTRO!$E$37="Non-endemic",INTRO!$E$41="Non-endemic"),0,COUNTRY_INFO!O19) -> 1 | I19: =IF($G19=1,DEC!I19,0) -> 0 | J19: ALB | K19: 3236 | L19: 2913 | N19: 6149 | O19: 0 | P19: 0 | R19: 0 | T19: 0 | U19: 0 | W19: 2913 | X19: 15 | Z19: 0 | AA19: 0
A20: =IF(AND(INTRO!$E$37="Non-endemic",INTRO!$E$41="Non-endemic")," ",IF(COUNTRY_INFO!A20=0," ",COUNTRY_INFO!A20)) -> Botswana | B20: =IF(AND(INTRO!$E$37="Non-endemic",INTRO!$E$41="Non-endemic")," ",IF(COUNTRY_INFO!B20=0," ",COUNTRY_INFO!B20)) ->  | C20: =IF(AND(INTRO!$E$37="Non-endemic",INTRO!$E$41="Non-endemic")," ",IF(COUNTRY_INFO!C20=0," ",COUNTRY_INFO!C20)) -> KGATLENG | D20: =IF(AND(INTRO!$E$37="Non-endemic",INTRO!$E$41="Non-endemic"),0,IF(AND(OR(COUNTRY_INFO!$H20=0,COUNTRY_INFO!$H20=4,COUNTRY_INFO!$H20=99),OR(COUNTRY_INFO!$I20=0,COUNTRY_INFO!$I20=4)),0,COUNTRY_INFO!$E20)) -> 9883 | E20: =IF(AND(INTRO!$E$37="Non-endemic",INTRO!$E$41="Non-endemic"),0,IF(AND(OR(COUNTRY_INFO!$H20=0,COUNTRY_INFO!$H20=4,COUNTRY_INFO!$H20=99),OR(COUNTRY_INFO!$I20=0,COUNTRY_INFO!$I20=4)),0,COUNTRY_INFO!$F20)) -> 8894 | F20: 18777 | G20: =IF(AND(INTRO!$E$37="Non-endemic",INTRO!$E$41="Non-endemic"),0,COUNTRY_INFO!N20) -> 0 | H20: =IF(AND(INTRO!$E$37="Non-endemic",INTRO!$E$41="Non-endemic"),0,COUNTRY_INFO!O20) -> 0 | I20: =IF($G20=1,DEC!I20,0) -> 0 | J20: ALB | K20: 0 | L20: 0 | N20: 0 | O20: 0 | P20: 0 | R20: 0 | T20: 0 | U20: 0 | W20: 0 | X20: 0 | Z20: 0 | AA20: 0
A21: =IF(AND(INTRO!$E$37="Non-endemic",INTRO!$E$41="Non-endemic")," ",IF(COUNTRY_INFO!A21=0," ",COUNTRY_INFO!A21)) -> Botswana | B21: =IF(AND(INTRO!$E$37="Non-endemic",INTRO!$E$41="Non-endemic")," ",IF(COUNTRY_INFO!B21=0," ",COUNTRY_INFO!B21)) ->  | C21: =IF(AND(INTRO!$E$37="Non-endemic",INTRO!$E$41="Non-endemic")," ",IF(COUNTRY_INFO!C21=0," ",COUNTRY_INFO!C21)) -> KWENENG EAST | D21: =IF(AND(INTRO!$E$37="Non-endemic",INTRO!$E$41="Non-endemic"),0,IF(AND(OR(COUNTRY_INFO!$H21=0,COUNTRY_INFO!$H21=4,COUNTRY_INFO!$H21=99),OR(COUNTRY_INFO!$I21=0,COUNTRY_INFO!$I21=4)),0,COUNTRY_INFO!$E21)) -> 27683 | E21: =IF(AND(INTRO!$E$37="Non-endemic",INTRO!$E$41="Non-endemic"),0,IF(AND(OR(COUNTRY_INFO!$H21=0,COUNTRY_INFO!$H21=4,COUNTRY_INFO!$H21=99),OR(COUNTRY_INFO!$I21=0,COUNTRY_INFO!$I21=4)),0,COUNTRY_INFO!$F21)) -> 24915 | F21: 52598 | G21: =IF(AND(INTRO!$E$37="Non-endemic",INTRO!$E$41="Non-endemic"),0,COUNTRY_INFO!N21) -> 0 | H21: =IF(AND(INTRO!$E$37="Non-endemic",INTRO!$E$41="Non-endemic"),0,COUNTRY_INFO!O21) -> 0 | I21: =IF($G21=1,DEC!I21,0) -> 0 | J21: ALB | K21: 0 | L21: 0 | N21: 0 | O21: 0 | P21: 0 | R21: 0 | T21: 0 | U21: 0 | W21: 0 | X21: 0 | Z21: 0 | AA21: 0
A22: =IF(AND(INTRO!$E$37="Non-endemic",INTRO!$E$41="Non-endemic")," ",IF(COUNTRY_INFO!A22=0," ",COUNTRY_INFO!A22)) -> Botswana | B22: =IF(AND(INTRO!$E$37="Non-endemic",INTRO!$E$41="Non-endemic")," ",IF(COUNTRY_INFO!B22=0," ",COUNTRY_INFO!B22)) ->  | C22: =IF(AND(INTRO!$E$37="Non-endemic",INTRO!$E$41="Non-endemic")," ",IF(COUNTRY_INFO!C22=0," ",COUNTRY_INFO!C22)) -> KWENENG WEST | D22: =IF(AND(INTRO!$E$37="Non-endemic",INTRO!$E$41="Non-endemic"),0,IF(AND(OR(COUNTRY_INFO!$H22=0,COUNTRY_INFO!$H22=4,COUNTRY_INFO!$H22=99),OR(COUNTRY_INFO!$I22=0,COUNTRY_INFO!$I22=4)),0,COUNTRY_INFO!$E22)) -> 5153 | E22: =IF(AND(INTRO!$E$37="Non-endemic",INTRO!$E$41="Non-endemic"),0,IF(AND(OR(COUNTRY_INFO!$H22=0,COUNTRY_INFO!$H22=4,COUNTRY_INFO!$H22=99),OR(COUNTRY_INFO!$I22=0,COUNTRY_INFO!$I22=4)),0,COUNTRY_INFO!$F22)) -> 4638 | F22: 9791 | G22: =IF(AND(INTRO!$E$37="Non-endemic",INTRO!$E$41="Non-endemic"),0,COUNTRY_INFO!N22) -> 0 | H22: =IF(AND(INTRO!$E$37="Non-endemic",INTRO!$E$41="Non-endemic"),0,COUNTRY_INFO!O22) -> 0 | I22: =IF($G22=1,DEC!I22,0) -> 0 | J22: ALB | K22: 0 | L22: 0 | N22: 0 | O22: 0 | P22: 0 | R22: 0 | T22: 0 | U22: 0 | W22: 0 | X22: 0 | Z22: 0 | AA22: 0
A23: =IF(AND(INTRO!$E$37="Non-endemic",INTRO!$E$41="Non-endemic")," ",IF(COUNTRY_INFO!A23=0," ",COUNTRY_INFO!A23)) -> Botswana | B23: =IF(AND(INTRO!$E$37="Non-endemic",INTRO!$E$41="Non-endemic")," ",IF(COUNTRY_INFO!B23=0," ",COUNTRY_INFO!B23)) ->  | C23: =IF(AND(INTRO!$E$37="Non-endemic",INTRO!$E$41="Non-endemic")," ",IF(COUNTRY_INFO!C23=0," ",COUNTRY_INFO!C23)) -> LOBATSE | D23: =IF(AND(INTRO!$E$37="Non-endemic",INTRO!$E$41="Non-endemic"),0,IF(AND(OR(COUNTRY_INFO!$H23=0,COUNTRY_INFO!$H23=4,COUNTRY_INFO!$H23=99),OR(COUNTRY_INFO!$I23=0,COUNTRY_INFO!$I23=4)),0,COUNTRY_INFO!$E23)) -> 3483 | E23: =IF(AND(INTRO!$E$37="Non-endemic",INTRO!$E$41="Non-endemic"),0,IF(AND(OR(COUNTRY_INFO!$H23=0,COUNTRY_INFO!$H23=4,COUNTRY_INFO!$H23=99),OR(COUNTRY_INFO!$I23=0,COUNTRY_INFO!$I23=4)),0,COUNTRY_INFO!$F23)) -> 3135 | F23: 6618 | G23: =IF(AND(INTRO!$E$37="Non-endemic",INTRO!$E$41="Non-endemic"),0,COUNTRY_INFO!N23) -> 0 | H23: =IF(AND(INTRO!$E$37="Non-endemic",INTRO!$E$41="Non-endemic"),0,COUNTRY_INFO!O23) -> 1 | I23: =IF($G23=1,DEC!I23,0) -> 0 | J23: ALB | K23: 3483 | L23: 3135 | N23: 6618 | O23: 0 | P23: 0 | R23: 0 | T23: 0 | U23: 0 | W23: 3135 | X23: 16 | Z23: 0 | AA23: 0
A24: =IF(AND(INTRO!$E$37="Non-endemic",INTRO!$E$41="Non-endemic")," ",IF(COUNTRY_INFO!A24=0," ",COUNTRY_INFO!A24)) -> Botswana | B24: =IF(AND(INTRO!$E$37="Non-endemic",INTRO!$E$41="Non-endemic")," ",IF(COUNTRY_INFO!B24=0," ",COUNTRY_INFO!B24)) ->  | C24: =IF(AND(INTRO!$E$37="Non-endemic",INTRO!$E$41="Non-endemic")," ",IF(COUNTRY_INFO!C24=0," ",COUNTRY_INFO!C24)) -> MABUTSANE | D24: =IF(AND(INTRO!$E$37="Non-endemic",INTRO!$E$41="Non-endemic"),0,IF(AND(OR(COUNTRY_INFO!$H24=0,COUNTRY_INFO!$H24=4,COUNTRY_INFO!$H24=99),OR(COUNTRY_INFO!$I24=0,COUNTRY_INFO!$I24=4)),0,COUNTRY_INFO!$E24)) -> 664 | E24: =IF(AND(INTRO!$E$37="Non-endemic",INTRO!$E$41="Non-endemic"),0,IF(AND(OR(COUNTRY_INFO!$H24=0,COUNTRY_INFO!$H24=4,COUNTRY_INFO!$H24=99),OR(COUNTRY_INFO!$I24=0,COUNTRY_INFO!$I24=4)),0,COUNTRY_INFO!$F24)) -> 598 | F24: 1262 | G24: =IF(AND(INTRO!$E$37="Non-endemic",INTRO!$E$41="Non-endemic"),0,COUNTRY_INFO!N24) -> 0 | H24: =IF(AND(INTRO!$E$37="Non-endemic",INTRO!$E$41="Non-endemic"),0,COUNTRY_INFO!O24) -> 1 | I24: =IF($G24=1,DEC!I24,0) -> 0 | J24: ALB | K24: 664 | L24: 598 | N24: 1262 | O24: 0 | P24: 0 | R24: 0 | T24: 0 | U24: 0 | W24: 598 | X24: 3 | Z24: 0 | AA24: 0
A25: =IF(AND(INTRO!$E$37="Non-endemic",INTRO!$E$41="Non-endemic")," ",IF(COUNTRY_INFO!A25=0," ",COUNTRY_INFO!A25)) -> Botswana | B25: =IF(AND(INTRO!$E$37="Non-endemic",INTRO!$E$41="Non-endemic")," ",IF(COUNTRY_INFO!B25=0," ",COUNTRY_INFO!B25)) ->  | C25: =IF(AND(INTRO!$E$37="Non-endemic",INTRO!$E$41="Non-endemic")," ",IF(COUNTRY_INFO!C25=0," ",COUNTRY_INFO!C25)) -> MAHALAPYE | D25: =IF(AND(INTRO!$E$37="Non-endemic",INTRO!$E$41="Non-endemic"),0,IF(AND(OR(COUNTRY_INFO!$H25=0,COUNTRY_INFO!$H25=4,COUNTRY_INFO!$H25=99),OR(COUNTRY_INFO!$I25=0,COUNTRY_INFO!$I25=4)),0,COUNTRY_INFO!$E25)) -> 12817 | E25: =IF(AND(INTRO!$E$37="Non-endemic",INTRO!$E$41="Non-endemic"),0,IF(AND(OR(COUNTRY_INFO!$H25=0,COUNTRY_INFO!$H25=4,COUNTRY_INFO!$H25=99),OR(COUNTRY_INFO!$I25=0,COUNTRY_INFO!$I25=4)),0,COUNTRY_INFO!$F25)) -> 11535 | F25: 24352 | G25: =IF(AND(INTRO!$E$37="Non-endemic",INTRO!$E$41="Non-endemic"),0,COUNTRY_INFO!N25) -> 0 | H25: =IF(AND(INTRO!$E$37="Non-endemic",INTRO!$E$41="Non-endemic"),0,COUNTRY_INFO!O25) -> 1 | I25: =IF($G25=1,DEC!I25,0) -> 0 | J25: ALB | K25: 12817 | L25: 11535 | N25: 24352 | O25: 0 | P25: 0 | R25: 0 | T25: 0 | U25: 0 | W25: 11535 | X25: 58 | Z25: 0 | AA25: 0
A26: =IF(AND(INTRO!$E$37="Non-endemic",INTRO!$E$41="Non-endemic")," ",IF(COUNTRY_INFO!A26=0," ",COUNTRY_INFO!A26)) -> Botswana | B26: =IF(AND(INTRO!$E$37="Non-endemic",INTRO!$E$41="Non-endemic")," ",IF(COUNTRY_INFO!B26=0," ",COUNTRY_INFO!B26)) ->  | C26: =IF(AND(INTRO!$E$37="Non-endemic",INTRO!$E$41="Non-endemic")," ",IF(COUNTRY_INFO!C26=0," ",COUNTRY_INFO!C26)) -> NGAMILAND | D26: =IF(AND(INTRO!$E$37="Non-endemic",INTRO!$E$41="Non-endemic"),0,IF(AND(OR(COUNTRY_INFO!$H26=0,COUNTRY_INFO!$H26=4,COUNTRY_INFO!$H26=99),OR(COUNTRY_INFO!$I26=0,COUNTRY_INFO!$I26=4)),0,COUNTRY_INFO!$E26)) -> 9740 | E26: =IF(AND(INTRO!$E$37="Non-endemic",INTRO!$E$41="Non-endemic"),0,IF(AND(OR(COUNTRY_INFO!$H26=0,COUNTRY_INFO!$H26=4,COUNTRY_INFO!$H26=99),OR(COUNTRY_INFO!$I26=0,COUNTRY_INFO!$I26=4)),0,COUNTRY_INFO!$F26)) -> 8766 | F26: 18506 | G26: =IF(AND(INTRO!$E$37="Non-endemic",INTRO!$E$41="Non-endemic"),0,COUNTRY_INFO!N26) -> 0 | H26: =IF(AND(INTRO!$E$37="Non-endemic",INTRO!$E$41="Non-endemic"),0,COUNTRY_INFO!O26) -> 1 | I26: =IF($G26=1,DEC!I26,0) -> 0 | J26: ALB | K26: 9740 | L26: 8766 | N26: 18506 | O26: 0 | P26: 0 | R26: 0 | T26: 0 | U26: 0 | W26: 8766 | X26: 44 | Z26: 0 | AA26: 0
A27: =IF(AND(INTRO!$E$37="Non-endemic",INTRO!$E$41="Non-endemic")," ",IF(COUNTRY_INFO!A27=0," ",COUNTRY_INFO!A27)) -> Botswana | B27: =IF(AND(INTRO!$E$37="Non-endemic",INTRO!$E$41="Non-endemic")," ",IF(COUNTRY_INFO!B27=0," ",COUNTRY_INFO!B27)) ->  | C27: =IF(AND(INTRO!$E$37="Non-endemic",INTRO!$E$41="Non-endemic")," ",IF(COUNTRY_INFO!C27=0," ",COUNTRY_INFO!C27)) -> NORTH EAST | D27: =IF(AND(INTRO!$E$37="Non-endemic",INTRO!$E$41="Non-endemic"),0,IF(AND(OR(COUNTRY_INFO!$H27=0,COUNTRY_INFO!$H27=4,COUNTRY_INFO!$H27=99),OR(COUNTRY_INFO!$I27=0,COUNTRY_INFO!$I27=4)),0,COUNTRY_INFO!$E27)) -> 6498 | E27: =IF(AND(INTRO!$E$37="Non-endemic",INTRO!$E$41="Non-endemic"),0,IF(AND(OR(COUNTRY_INFO!$H27=0,COUNTRY_INFO!$H27=4,COUNTRY_INFO!$H27=99),OR(COUNTRY_INFO!$I27=0,COUNTRY_INFO!$I27=4)),0,COUNTRY_INFO!$F27)) -> 5848 | F27: 12346 | G27: =IF(AND(INTRO!$E$37="Non-endemic",INTRO!$E$41="Non-endemic"),0,COUNTRY_INFO!N27) -> 0 | H27: =IF(AND(INTRO!$E$37="Non-endemic",INTRO!$E$41="Non-endemic"),0,COUNTRY_INFO!O27) -> 0 | I27: =IF($G27=1,DEC!I27,0) -> 0 | J27: ALB | K27: 0 | L27: 0 | N27: 0 | O27: 0 | P27: 0 | R27: 0 | T27: 0 | U27: 0 | W27: 0 | X27: 0 | Z27: 0 | AA27: 0
A28: =IF(AND(INTRO!$E$37="Non-endemic",INTRO!$E$41="Non-endemic")," ",IF(COUNTRY_INFO!A28=0," ",COUNTRY_INFO!A28)) -> Botswana | B28: =IF(AND(INTRO!$E$37="Non-endemic",INTRO!$E$41="Non-endemic")," ",IF(COUNTRY_INFO!B28=0," ",COUNTRY_INFO!B28)) ->  | C28: =IF(AND(INTRO!$E$37="Non-endemic",INTRO!$E$41="Non-endemic")," ",IF(COUNTRY_INFO!C28=0," ",COUNTRY_INFO!C28)) -> OKAVANGO | D28: =IF(AND(INTRO!$E$37="Non-endemic",INTRO!$E$41="Non-endemic"),0,IF(AND(OR(COUNTRY_INFO!$H28=0,COUNTRY_INFO!$H28=4,COUNTRY_INFO!$H28=99),OR(COUNTRY_INFO!$I28=0,COUNTRY_INFO!$I28=4)),0,COUNTRY_INFO!$E28)) -> 6407 | E28: =IF(AND(INTRO!$E$37="Non-endemic",INTRO!$E$41="Non-endemic"),0,IF(AND(OR(COUNTRY_INFO!$H28=0,COUNTRY_INFO!$H28=4,COUNTRY_INFO!$H28=99),OR(COUNTRY_INFO!$I28=0,COUNTRY_INFO!$I28=4)),0,COUNTRY_INFO!$F28)) -> 5766 | F28: 12173 | G28: =IF(AND(INTRO!$E$37="Non-endemic",INTRO!$E$41="Non-endemic"),0,COUNTRY_INFO!N28) -> 0 | H28: =IF(AND(INTRO!$E$37="Non-endemic",INTRO!$E$41="Non-endemic"),0,COUNTRY_INFO!O28) -> 1 | I28: =IF($G28=1,DEC!I28,0) -> 0 | J28: ALB | K28: 6407 | L28: 5766 | N28: 12173 | O28: 0 | P28: 0 | R28: 0 | T28: 0 | U28: 0 | W28: 5766 | X28: 29 | Z28: 0 | AA28: 0
A29: =IF(AND(INTRO!$E$37="Non-endemic",INTRO!$E$41="Non-endemic")," ",IF(COUNTRY_INFO!A29=0," ",COUNTRY_INFO!A29)) -> Botswana | B29: =IF(AND(INTRO!$E$37="Non-endemic",INTRO!$E$41="Non-endemic")," ",IF(COUNTRY_INFO!B29=0," ",COUNTRY_INFO!B29)) ->  | C29: =IF(AND(INTRO!$E$37="Non-endemic",INTRO!$E$41="Non-endemic")," ",IF(COUNTRY_INFO!C29=0," ",COUNTRY_INFO!C29)) -> SELIBE PHIKWE | D29: =IF(AND(INTRO!$E$37="Non-endemic",INTRO!$E$41="Non-endemic"),0,IF(AND(OR(COUNTRY_INFO!$H29=0,COUNTRY_INFO!$H29=4,COUNTRY_INFO!$H29=99),OR(COUNTRY_INFO!$I29=0,COUNTRY_INFO!$I29=4)),0,COUNTRY_INFO!$E29)) -> 19461 | E29: =IF(AND(INTRO!$E$37="Non-endemic",INTRO!$E$41="Non-endemic"),0,IF(AND(OR(COUNTRY_INFO!$H29=0,COUNTRY_INFO!$H29=4,COUNTRY_INFO!$H29=99),OR(COUNTRY_INFO!$I29=0,COUNTRY_INFO!$I29=4)),0,COUNTRY_INFO!$F29)) -> 17515 | F29: 36976 | G29: =IF(AND(INTRO!$E$37="Non-endemic",INTRO!$E$41="Non-endemic"),0,COUNTRY_INFO!N29) -> 0 | H29: =IF(AND(INTRO!$E$37="Non-endemic",INTRO!$E$41="Non-endemic"),0,COUNTRY_INFO!O29) -> 1 | I29: =IF($G29=1,DEC!I29,0) -> 0 | J29: ALB | K29: 19461 | L29: 17515 | N29: 36976 | O29: 0 | P29: 0 | R29: 0 | T29: 0 | U29: 0 | W29: 17515 | X29: 88 | Z29: 0 | AA29: 0
A30: =IF(AND(INTRO!$E$37="Non-endemic",INTRO!$E$41="Non-endemic")," ",IF(COUNTRY_INFO!A30=0," ",COUNTRY_INFO!A30)) -> Botswana | B30: =IF(AND(INTRO!$E$37="Non-endemic",INTRO!$E$41="Non-endemic")," ",IF(COUNTRY_INFO!B30=0," ",COUNTRY_INFO!B30)) ->  | C30: =IF(AND(INTRO!$E$37="Non-endemic",INTRO!$E$41="Non-endemic")," ",IF(COUNTRY_INFO!C30=0," ",COUNTRY_INFO!C30)) -> SEROWE / PALAPYE | D30: =IF(AND(INTRO!$E$37="Non-endemic",INTRO!$E$41="Non-endemic"),0,IF(AND(OR(COUNTRY_INFO!$H30=0,COUNTRY_INFO!$H30=4,COUNTRY_INFO!$H30=99),OR(COUNTRY_INFO!$I30=0,COUNTRY_INFO!$I30=4)),0,COUNTRY_INFO!$E30)) -> 5328 | E30: =IF(AND(INTRO!$E$37="Non-endemic",INTRO!$E$41="Non-endemic"),0,IF(AND(OR(COUNTRY_INFO!$H30=0,COUNTRY_INFO!$H30=4,COUNTRY_INFO!$H30=99),OR(COUNTRY_INFO!$I30=0,COUNTRY_INFO!$I30=4)),0,COUNTRY_INFO!$F30)) -> 4795 | F30: 10123 | G30: =IF(AND(INTRO!$E$37="Non-endemic",INTRO!$E$41="Non-endemic"),0,COUNTRY_INFO!N30) -> 0 | H30: =IF(AND(INTRO!$E$37="Non-endemic",INTRO!$E$41="Non-endemic"),0,COUNTRY_INFO!O30) -> 0 | I30: =IF($G30=1,DEC!I30,0) -> 0 | J30: ALB | K30: 0 | L30: 0 | N30: 0 | O30: 0 | P30: 0 | R30: 0 | T30: 0 | U30: 0 | W30: 0 | X30: 0 | Z30: 0 | AA30: 0
A31: =IF(AND(INTRO!$E$37="Non-endemic",INTRO!$E$41="Non-endemic")," ",IF(COUNTRY_INFO!A31=0," ",COUNTRY_INFO!A31)) -> Botswana | B31: =IF(AND(INTRO!$E$37="Non-endemic",INTRO!$E$41="Non-endemic")," ",IF(COUNTRY_INFO!B31=0," ",COUNTRY_INFO!B31)) ->  | C31: =IF(AND(INTRO!$E$37="Non-endemic",INTRO!$E$41="Non-endemic")," ",IF(COUNTRY_INFO!C31=0," ",COUNTRY_INFO!C31)) -> SOUTH EAST | D31: =IF(AND(INTRO!$E$37="Non-endemic",INTRO!$E$41="Non-endemic"),0,IF(AND(OR(COUNTRY_INFO!$H31=0,COUNTRY_INFO!$H31=4,COUNTRY_INFO!$H31=99),OR(COUNTRY_INFO!$I31=0,COUNTRY_INFO!$I31=4)),0,COUNTRY_INFO!$E31)) -> 5250 | E31: =IF(AND(INTRO!$E$37="Non-endemic",INTRO!$E$41="Non-endemic"),0,IF(AND(OR(COUNTRY_INFO!$H31=0,COUNTRY_INFO!$H31=4,COUNTRY_INFO!$H31=99),OR(COUNTRY_INFO!$I31=0,COUNTRY_INFO!$I31=4)),0,COUNTRY_INFO!$F31)) -> 4725 | F31: 9975 | G31: =IF(AND(INTRO!$E$37="Non-endemic",INTRO!$E$41="Non-endemic"),0,COUNTRY_INFO!N31) -> 0 | H31: =IF(AND(INTRO!$E$37="Non-endemic",INTRO!$E$41="Non-endemic"),0,COUNTRY_INFO!O31) -> 0 | I31: =IF($G31=1,DEC!I31,0) -> 0 | J31: ALB | K31: 0 | L31: 0 | N31: 0 | O31: 0 | P31: 0 | R31: 0 | T31: 0 | U31: 0 | W31: 0 | X31: 0 | Z31: 0 | AA31: 0
A32: =IF(AND(INTRO!$E$37="Non-endemic",INTRO!$E$41="Non-endemic")," ",IF(COUNTRY_INFO!A32=0," ",COUNTRY_INFO!A32)) -> Botswana | B32: =IF(AND(INTRO!$E$37="Non-endemic",INTRO!$E$41="Non-endemic")," ",IF(COUNTRY_INFO!B32=0," ",COUNTRY_INFO!B32)) ->  | C32: =IF(AND(INTRO!$E$37="Non-endemic",INTRO!$E$41="Non-endemic")," ",IF(COUNTRY_INFO!C32=0," ",COUNTRY_INFO!C32)) -> TUTUME | D32: =IF(AND(INTRO!$E$37="Non-endemic",INTRO!$E$41="Non-endemic"),0,IF(AND(OR(COUNTRY_INFO!$H32=0,COUNTRY_INFO!$H32=4,COUNTRY_INFO!$H32=99),OR(COUNTRY_INFO!$I32=0,COUNTRY_INFO!$I32=4)),0,COUNTRY_INFO!$E32)) -> 12756 | E32: =IF(AND(INTRO!$E$37="Non-endemic",INTRO!$E$41="Non-endemic"),0,IF(AND(OR(COUNTRY_INFO!$H32=0,COUNTRY_INFO!$H32=4,COUNTRY_INFO!$H32=99),OR(COUNTRY_INFO!$I32=0,COUNTRY_INFO!$I32=4)),0,COUNTRY_INFO!$F32)) -> 11481 | F32: 24237 | G32: =IF(AND(INTRO!$E$37="Non-endemic",INTRO!$E$41="Non-endemic"),0,COUNTRY_INFO!N32) -> 0 | H32: =IF(AND(INTRO!$E$37="Non-endemic",INTRO!$E$41="Non-endemic"),0,COUNTRY_INFO!O32) -> 0 | I32: =IF($G32=1,DEC!I32,0) -> 0 | J32: ALB | K32: 0 | L32: 0 | N32: 0 | O32: 0 | P32: 0 | R32: 0 | T32: 0 | U32: 0 | W32: 0 | X32: 0 | Z32: 0 | AA32: 0

Sheet PZQ
A1: Praziquantel (PZQ)
A2: Administrative structure, eligible population by age group, treatment plan and information about tablets
A4: TOTAL | D4: =SUM(D$9:D$1000) -> 0 | E4: =SUM(E$9:E$1000) -> 0 | F4: =SUM(F$9:F$1000) -> 0 | I4: =SUM(I$9:I$1000) -> 0 | J4: 0 | K4: 0 | L4: 0 | M4: 0 | N4: 0 | O4: 0 | P4: 0 | Q4: 0 | R4: 0
A6: Country administrative structure | D6: Population requiring treatment with PZQ | G6: Treatment plan | I6: Target population | M6: Praziquantel (PZQ)
A7: Country | B7: Province/State | C7: District | D7: SAC | E7: Adults | F7: Total | G7: SCH | H7: All SAC targeted? | I7: SAC | J7: SAC at lower level | K7: Adults | L7: Total | M7: SAC | N7: Adults | O7: Total required for SAC | P7: Remaining in stock | Q7: Tablets to be procured | R7: Bottle (600 mg) 1000 tablets
A9: =IF(INTRO!$E$43="Non-endemic"," ", IF(COUNTRY_INFO!A9=0," ",COUNTRY_INFO!A9)) -> Botswana | B9: =IF(INTRO!$E$43="Non-endemic"," ", IF(COUNTRY_INFO!B9=0," ",COUNTRY_INFO!B9)) ->  | C9: =IF(INTRO!$E$43="Non-endemic"," ", IF(COUNTRY_INFO!C9=0," ",COUNTRY_INFO!C9)) -> BOBIRWA | D9: =IF(INTRO!$E$43="Non-endemic", 0, IF(COUNTRY_INFO!$J9>0, IF(COUNTRY_INFO!$J9=4, 0, IF(COUNTRY_INFO!$J9=1, COUNTRY_INFO!$F9*0.33, IF(COUNTRY_INFO!$J9=2, COUNTRY_INFO!$F9*0.5, COUNTRY_INFO!$F9))), 0)) -> 0 | E9: =IF(INTRO!$E$43="Non-endemic", 0, IF(COUNTRY_INFO!$J9>0, IF(COUNTRY_INFO!$J9=4, 0, IF(COUNTRY_INFO!$J9=1, 0, IF(COUNTRY_INFO!$J9=2, COUNTRY_INFO!$G9*0.2, COUNTRY_INFO!$G9))), 0)) -> 0 | F9: =SUM(D9:E9) -> 0 | G9: =IF(INTRO!$E$43="Non-endemic", "Not required", COUNTRY_INFO!P9) -> 0 | I9: =IF($D9=0,0,IF(AND($G9>0,$H9<>"Yes"),D9,IF(AND($G9>0,$H9="Yes"),COUNTRY_INFO!$F9,0))) -> 0 | K9: =IF($G9>0,E9, 0) -> 0 | L9: =IF($J9=0,SUM(I9,K9),SUM(J9,K9)) -> 0 | M9: =IF($J9=0,$I9*2.5,$J9*2.5) -> 0 | N9: =$K9*3 -> 0 | O9: =M9 -> 0 | Q9: =IF($O9>$P9,O9-P9,0) -> 0 | R9: =ROUNDUP($O9/1000,0) -> 0
A10: =IF(INTRO!$E$43="Non-endemic"," ", IF(COUNTRY_INFO!A10=0," ",COUNTRY_INFO!A10)) -> Botswana | B10: =IF(INTRO!$E$43="Non-endemic"," ", IF(COUNTRY_INFO!B10=0," ",COUNTRY_INFO!B10)) ->  | C10: =IF(INTRO!$E$43="Non-endemic"," ", IF(COUNTRY_INFO!C10=0," ",COUNTRY_INFO!C10)) -> BOTETI | D10: =IF(INTRO!$E$43="Non-endemic", 0, IF(COUNTRY_INFO!$J10>0, IF(COUNTRY_INFO!$J10=4, 0, IF(COUNTRY_INFO!$J10=1, COUNTRY_INFO!$F10*0.33, IF(COUNTRY_INFO!$J10=2, COUNTRY_INFO!$F10*0.5, COUNTRY_INFO!$F10))), 0)) -> 0 | E10: =IF(INTRO!$E$43="Non-endemic", 0, IF(COUNTRY_INFO!$J10>0, IF(COUNTRY_INFO!$J10=4, 0, IF(COUNTRY_INFO!$J10=1, 0, IF(COUNTRY_INFO!$J10=2, COUNTRY_INFO!$G10*0.2, COUNTRY_INFO!$G10))), 0)) -> 0 | F10: 0 | G10: =IF(INTRO!$E$43="Non-endemic", "Not required", COUNTRY_INFO!P10) -> 0 | I10: =IF($D10=0,0,IF(AND($G10>0,$H10<>"Yes"),D10,IF(AND($G10>0,$H10="Yes"),COUNTRY_INFO!$F10,0))) -> 0 | K10: 0 | L10: 0 | M10: 0 | N10: 0 | O10: 0 | Q10: 0 | R10: 0
A11: =IF(INTRO!$E$43="Non-endemic"," ", IF(COUNTRY_INFO!A11=0," ",COUNTRY_INFO!A11)) -> Botswana | B11: =IF(INTRO!$E$43="Non-endemic"," ", IF(COUNTRY_INFO!B11=0," ",COUNTRY_INFO!B11)) ->  | C11: =IF(INTRO!$E$43="Non-endemic"," ", IF(COUNTRY_INFO!C11=0," ",COUNTRY_INFO!C11)) -> CHOBE | D11: =IF(INTRO!$E$43="Non-endemic", 0, IF(COUNTRY_INFO!$J11>0, IF(COUNTRY_INFO!$J11=4, 0, IF(COUNTRY_INFO!$J11=1, COUNTRY_INFO!$F11*0.33, IF(COUNTRY_INFO!$J11=2, COUNTRY_INFO!$F11*0.5, COUNTRY_INFO!$F11))), 0)) -> 0 | E11: =IF(INTRO!$E$43="Non-endemic", 0, IF(COUNTRY_INFO!$J11>0, IF(COUNTRY_INFO!$J11=4, 0, IF(COUNTRY_INFO!$J11=1, 0, IF(COUNTRY_INFO!$J11=2, COUNTRY_INFO!$G11*0.2, COUNTRY_INFO!$G11))), 0)) -> 0 | F11: 0 | G11: =IF(INTRO!$E$43="Non-endemic", "Not required", COUNTRY_INFO!P11) -> 0 | I11: =IF($D11=0,0,IF(AND($G11>0,$H11<>"Yes"),D11,IF(AND($G11>0,$H11="Yes"),COUNTRY_INFO!$F11,0))) -> 0 | K11: 0 | L11: 0 | M11: 0 | N11: 0 | O11: 0 | Q11: 0 | R11: 0
A12: =IF(INTRO!$E$43="Non-endemic"," ", IF(COUNTRY_INFO!A12=0," ",COUNTRY_INFO!A12)) -> Botswana | B12: =IF(INTRO!$E$43="Non-endemic"," ", IF(COUNTRY_INFO!B12=0," ",COUNTRY_INFO!B12)) ->  | C12: =IF(INTRO!$E$43="Non-endemic"," ", IF(COUNTRY_INFO!C12=0," ",COUNTRY_INFO!C12)) -> FRANCISTOWN | D12: =IF(INTRO!$E$43="Non-endemic", 0, IF(COUNTRY_INFO!$J12>0, IF(COUNTRY_INFO!$J12=4, 0, IF(COUNTRY_INFO!$J12=1, COUNTRY_INFO!$F12*0.33, IF(COUNTRY_INFO!$J12=2, COUNTRY_INFO!$F12*0.5, COUNTRY_INFO!$F12))), 0)) -> 0 | E12: =IF(INTRO!$E$43="Non-endemic", 0, IF(COUNTRY_INFO!$J12>0, IF(COUNTRY_INFO!$J12=4, 0, IF(COUNTRY_INFO!$J12=1, 0, IF(COUNTRY_INFO!$J12=2, COUNTRY_INFO!$G12*0.2, COUNTRY_INFO!$G12))), 0)) -> 0 | F12: 0 | G12: =IF(INTRO!$E$43="Non-endemic", "Not required", COUNTRY_INFO!P12) -> 0 | I12: =IF($D12=0,0,IF(AND($G12>0,$H12<>"Yes"),D12,IF(AND($G12>0,$H12="Yes"),COUNTRY_INFO!$F12,0))) -> 0 | K12: 0 | L12: 0 | M12: 0 | N12: 0 | O12: 0 | Q12: 0 | R12: 0
A13: =IF(INTRO!$E$43="Non-endemic"," ", IF(COUNTRY_INFO!A13=0," ",COUNTRY_INFO!A13)) -> Botswana | B13: =IF(INTRO!$E$43="Non-endemic"," ", IF(COUNTRY_INFO!B13=0," ",COUNTRY_INFO!B13)) ->  | C13: =IF(INTRO!$E$43="Non-endemic"," ", IF(COUNTRY_INFO!C13=0," ",COUNTRY_INFO!C13)) -> GABORONE | D13: =IF(INTRO!$E$43="Non-endemic", 0, IF(COUNTRY_INFO!$J13>0, IF(COUNTRY_INFO!$J13=4, 0, IF(COUNTRY_INFO!$J13=1, COUNTRY_INFO!$F13*0.33, IF(COUNTRY_INFO!$J13=2, COUNTRY_INFO!$F13*0.5, COUNTRY_INFO!$F13))), 0)) -> 0 | E13: =IF(INTRO!$E$43="Non-endemic", 0, IF(COUNTRY_INFO!$J13>0, IF(COUNTRY_INFO!$J13=4, 0, IF(COUNTRY_INFO!$J13=1, 0, IF(COUNTRY_INFO!$J13=2, COUNTRY_INFO!$G13*0.2, COUNTRY_INFO!$G13))), 0)) -> 0 | F13: 0 | G13: =IF(INTRO!$E$43="Non-endemic", "Not required", COUNTRY_INFO!P13) -> 0 | I13: =IF($D13=0,0,IF(AND($G13>0,$H13<>"Yes"),D13,IF(AND($G13>0,$H13="Yes"),COUNTRY_INFO!$F13,0))) -> 0 | K13: 0 | L13: 0 | M13: 0 | N13: 0 | O13: 0 | Q13: 0 | R13: 0
A14: =IF(INTRO!$E$43="Non-endemic"," ", IF(COUNTRY_INFO!A14=0," ",COUNTRY_INFO!A14)) -> Botswana | B14: =IF(INTRO!$E$43="Non-endemic"," ", IF(COUNTRY_INFO!B14=0," ",COUNTRY_INFO!B14)) ->  | C14: =IF(INTRO!$E$43="Non-endemic"," ", IF(COUNTRY_INFO!C14=0," ",COUNTRY_INFO!C14)) -> GANTSI/CHARLESHILL | D14: =IF(INTRO!$E$43="Non-endemic", 0, IF(COUNTRY_INFO!$J14>0, IF(COUNTRY_INFO!$J14=4, 0, IF(COUNTRY_INFO!$J14=1, COUNTRY_INFO!$F14*0.33, IF(COUNTRY_INFO!$J14=2, COUNTRY_INFO!$F14*0.5, COUNTRY_INFO!$F14))), 0)) -> 0 | E14: =IF(INTRO!$E$43="Non-endemic", 0, IF(COUNTRY_INFO!$J14>0, IF(COUNTRY_INFO!$J14=4, 0, IF(COUNTRY_INFO!$J14=1, 0, IF(COUNTRY_INFO!$J14=2, COUNTRY_INFO!$G14*0.2, COUNTRY_INFO!$G14))), 0)) -> 0 | F14: 0 | G14: =IF(INTRO!$E$43="Non-endemic", "Not required", COUNTRY_INFO!P14) -> 0 | I14: =IF($D14=0,0,IF(AND($G14>0,$H14<>"Yes"),D14,IF(AND($G14>0,$H14="Yes"),COUNTRY_INFO!$F14,0))) -> 0 | K14: 0 | L14: 0 | M14: 0 | N14: 0 | O14: 0 | Q14: 0 | R14: 0
A15: =IF(INTRO!$E$43="Non-endemic"," ", IF(COUNTRY_INFO!A15=0," ",COUNTRY_INFO!A15)) -> Botswana | B15: =IF(INTRO!$E$43="Non-endemic"," ", IF(COUNTRY_INFO!B15=0," ",COUNTRY_INFO!B15)) ->  | C15: =IF(INTRO!$E$43="Non-endemic"," ", IF(COUNTRY_INFO!C15=0," ",COUNTRY_INFO!C15)) -> GOODHOPE | D15: =IF(INTRO!$E$43="Non-endemic", 0, IF(COUNTRY_INFO!$J15>0, IF(COUNTRY_INFO!$J15=4, 0, IF(COUNTRY_INFO!$J15=1, COUNTRY_INFO!$F15*0.33, IF(COUNTRY_INFO!$J15=2, COUNTRY_INFO!$F15*0.5, COUNTRY_INFO!$F15))), 0)) -> 0 | E15: =IF(INTRO!$E$43="Non-endemic", 0, IF(COUNTRY_INFO!$J15>0, IF(COUNTRY_INFO!$J15=4, 0, IF(COUNTRY_INFO!$J15=1, 0, IF(COUNTRY_INFO!$J15=2, COUNTRY_INFO!$G15*0.2, COUNTRY_INFO!$G15))), 0)) -> 0 | F15: 0 | G15: =IF(INTRO!$E$43="Non-endemic", "Not required", COUNTRY_INFO!P15) -> 0 | I15: =IF($D15=0,0,IF(AND($G15>0,$H15<>"Yes"),D15,IF(AND($G15>0,$H15="Yes"),COUNTRY_INFO!$F15,0))) -> 0 | K15: 0 | L15: 0 | M15: 0 | N15: 0 | O15: 0 | Q15: 0 | R15: 0
A16: =IF(INTRO!$E$43="Non-endemic"," ", IF(COUNTRY_INFO!A16=0," ",COUNTRY_INFO!A16)) -> Botswana | B16: =IF(INTRO!$E$43="Non-endemic"," ", IF(COUNTRY_INFO!B16=0," ",COUNTRY_INFO!B16)) ->  | C16: =IF(INTRO!$E$43="Non-endemic"," ", IF(COUNTRY_INFO!C16=0," ",COUNTRY_INFO!C16)) -> JWANENG | D16: =IF(INTRO!$E$43="Non-endemic", 0, IF(COUNTRY_INFO!$J16>0, IF(COUNTRY_INFO!$J16=4, 0, IF(COUNTRY_INFO!$J16=1, COUNTRY_INFO!$F16*0.33, IF(COUNTRY_INFO!$J16=2, COUNTRY_INFO!$F16*0.5, COUNTRY_INFO!$F16))), 0)) -> 0 | E16: =IF(INTRO!$E$43="Non-endemic", 0, IF(COUNTRY_INFO!$J16>0, IF(COUNTRY_INFO!$J16=4, 0, IF(COUNTRY_INFO!$J16=1, 0, IF(COUNTRY_INFO!$J16=2, COUNTRY_INFO!$G16*0.2, COUNTRY_INFO!$G16))), 0)) -> 0 | F16: 0 | G16: =IF(INTRO!$E$43="Non-endemic", "Not required", COUNTRY_INFO!P16) -> 0 | I16: =IF($D16=0,0,IF(AND($G16>0,$H16<>"Yes"),D16,IF(AND($G16>0,$H16="Yes"),COUNTRY_INFO!$F16,0))) -> 0 | K16: 0 | L16: 0 | M16: 0 | N16: 0 | O16: 0 | Q16: 0 | R16: 0
A17: =IF(INTRO!$E$43="Non-endemic"," ", IF(COUNTRY_INFO!A17=0," ",COUNTRY_INFO!A17)) -> Botswana | B17: =IF(INTRO!$E$43="Non-endemic"," ", IF(COUNTRY_INFO!B17=0," ",COUNTRY_INFO!B17)) ->  | C17: =IF(INTRO!$E$43="Non-endemic"," ", IF(COUNTRY_INFO!C17=0," ",COUNTRY_INFO!C17)) -> KANYE/MOSHOPA | D17: =IF(INTRO!$E$43="Non-endemic", 0, IF(COUNTRY_INFO!$J17>0, IF(COUNTRY_INFO!$J17=4, 0, IF(COUNTRY_INFO!$J17=1, COUNTRY_INFO!$F17*0.33, IF(COUNTRY_INFO!$J17=2, COUNTRY_INFO!$F17*0.5, COUNTRY_INFO!$F17))), 0)) -> 0 | E17: =IF(INTRO!$E$43="Non-endemic", 0, IF(COUNTRY_INFO!$J17>0, IF(COUNTRY_INFO!$J17=4, 0, IF(COUNTRY_INFO!$J17=1, 0, IF(COUNTRY_INFO!$J17=2, COUNTRY_INFO!$G17*0.2, COUNTRY_INFO!$G17))), 0)) -> 0 | F17: 0 | G17: =IF(INTRO!$E$43="Non-endemic", "Not required", COUNTRY_INFO!P17) -> 0 | I17: =IF($D17=0,0,IF(AND($G17>0,$H17<>"Yes"),D17,IF(AND($G17>0,$H17="Yes"),COUNTRY_INFO!$F17,0))) -> 0 | K17: 0 | L17: 0 | M17: 0 | N17: 0 | O17: 0 | Q17: 0 | R17: 0
A18: =IF(INTRO!$E$43="Non-endemic"," ", IF(COUNTRY_INFO!A18=0," ",COUNTRY_INFO!A18)) -> Botswana | B18: =IF(INTRO!$E$43="Non-endemic"," ", IF(COUNTRY_INFO!B18=0," ",COUNTRY_INFO!B18)) ->  | C18: =IF(INTRO!$E$43="Non-endemic"," ", IF(COUNTRY_INFO!C18=0," ",COUNTRY_INFO!C18)) -> KGALAGADI NORTH | D18: =IF(INTRO!$E$43="Non-endemic", 0, IF(COUNTRY_INFO!$J18>0, IF(COUNTRY_INFO!$J18=4, 0, IF(COUNTRY_INFO!$J18=1, COUNTRY_INFO!$F18*0.33, IF(COUNTRY_INFO!$J18=2, COUNTRY_INFO!$F18*0.5, COUNTRY_INFO!$F18))), 0)) -> 0 | E18: =IF(INTRO!$E$43="Non-endemic", 0, IF(COUNTRY_INFO!$J18>0, IF(COUNTRY_INFO!$J18=4, 0, IF(COUNTRY_INFO!$J18=1, 0, IF(COUNTRY_INFO!$J18=2, COUNTRY_INFO!$G18*0.2, COUNTRY_INFO!$G18))), 0)) -> 0 | F18: 0 | G18: =IF(INTRO!$E$43="Non-endemic", "Not required", COUNTRY_INFO!P18) -> 0 | I18: =IF($D18=0,0,IF(AND($G18>0,$H18<>"Yes"),D18,IF(AND($G18>0,$H18="Yes"),COUNTRY_INFO!$F18,0))) -> 0 | K18: 0 | L18: 0 | M18: 0 | N18: 0 | O18: 0 | Q18: 0 | R18: 0
A19: =IF(INTRO!$E$43="Non-endemic"," ", IF(COUNTRY_INFO!A19=0," ",COUNTRY_INFO!A19)) -> Botswana | B19: =IF(INTRO!$E$43="Non-endemic"," ", IF(COUNTRY_INFO!B19=0," ",COUNTRY_INFO!B19)) ->  | C19: =IF(INTRO!$E$43="Non-endemic"," ", IF(COUNTRY_INFO!C19=0," ",COUNTRY_INFO!C19)) -> KGALAGADI SOUTH | D19: =IF(INTRO!$E$43="Non-endemic", 0, IF(COUNTRY_INFO!$J19>0, IF(COUNTRY_INFO!$J19=4, 0, IF(COUNTRY_INFO!$J19=1, COUNTRY_INFO!$F19*0.33, IF(COUNTRY_INFO!$J19=2, COUNTRY_INFO!$F19*0.5, COUNTRY_INFO!$F19))), 0)) -> 0 | E19: =IF(INTRO!$E$43="Non-endemic", 0, IF(COUNTRY_INFO!$J19>0, IF(COUNTRY_INFO!$J19=4, 0, IF(COUNTRY_INFO!$J19=1, 0, IF(COUNTRY_INFO!$J19=2, COUNTRY_INFO!$G19*0.2, COUNTRY_INFO!$G19))), 0)) -> 0 | F19: 0 | G19: =IF(INTRO!$E$43="Non-endemic", "Not required", COUNTRY_INFO!P19) -> 0 | I19: =IF($D19=0,0,IF(AND($G19>0,$H19<>"Yes"),D19,IF(AND($G19>0,$H19="Yes"),COUNTRY_INFO!$F19,0))) -> 0 | K19: 0 | L19: 0 | M19: 0 | N19: 0 | O19: 0 | Q19: 0 | R19: 0
A20: =IF(INTRO!$E$43="Non-endemic"," ", IF(COUNTRY_INFO!A20=0," ",COUNTRY_INFO!A20)) -> Botswana | B20: =IF(INTRO!$E$43="Non-endemic"," ", IF(COUNTRY_INFO!B20=0," ",COUNTRY_INFO!B20)) ->  | C20: =IF(INTRO!$E$43="Non-endemic"," ", IF(COUNTRY_INFO!C20=0," ",COUNTRY_INFO!C20)) -> KGATLENG | D20: =IF(INTRO!$E$43="Non-endemic", 0, IF(COUNTRY_INFO!$J20>0, IF(COUNTRY_INFO!$J20=4, 0, IF(COUNTRY_INFO!$J20=1, COUNTRY_INFO!$F20*0.33, IF(COUNTRY_INFO!$J20=2, COUNTRY_INFO!$F20*0.5, COUNTRY_INFO!$F20))), 0)) -> 0 | E20: =IF(INTRO!$E$43="Non-endemic", 0, IF(COUNTRY_INFO!$J20>0, IF(COUNTRY_INFO!$J20=4, 0, IF(COUNTRY_INFO!$J20=1, 0, IF(COUNTRY_INFO!$J20=2, COUNTRY_INFO!$G20*0.2, COUNTRY_INFO!$G20))), 0)) -> 0 | F20: 0 | G20: =IF(INTRO!$E$43="Non-endemic", "Not required", COUNTRY_INFO!P20) -> 0 | I20: =IF($D20=0,0,IF(AND($G20>0,$H20<>"Yes"),D20,IF(AND($G20>0,$H20="Yes"),COUNTRY_INFO!$F20,0))) -> 0 | K20: 0 | L20: 0 | M20: 0 | N20: 0 | O20: 0 | Q20: 0 | R20: 0
A21: =IF(INTRO!$E$43="Non-endemic"," ", IF(COUNTRY_INFO!A21=0," ",COUNTRY_INFO!A21)) -> Botswana | B21: =IF(INTRO!$E$43="Non-endemic"," ", IF(COUNTRY_INFO!B21=0," ",COUNTRY_INFO!B21)) ->  | C21: =IF(INTRO!$E$43="Non-endemic"," ", IF(COUNTRY_INFO!C21=0," ",COUNTRY_INFO!C21)) -> KWENENG EAST | D21: =IF(INTRO!$E$43="Non-endemic", 0, IF(COUNTRY_INFO!$J21>0, IF(COUNTRY_INFO!$J21=4, 0, IF(COUNTRY_INFO!$J21=1, COUNTRY_INFO!$F21*0.33, IF(COUNTRY_INFO!$J21=2, COUNTRY_INFO!$F21*0.5, COUNTRY_INFO!$F21))), 0)) -> 0 | E21: =IF(INTRO!$E$43="Non-endemic", 0, IF(COUNTRY_INFO!$J21>0, IF(COUNTRY_INFO!$J21=4, 0, IF(COUNTRY_INFO!$J21=1, 0, IF(COUNTRY_INFO!$J21=2, COUNTRY_INFO!$G21*0.2, COUNTRY_INFO!$G21))), 0)) -> 0 | F21: 0 | G21: =IF(INTRO!$E$43="Non-endemic", "Not required", COUNTRY_INFO!P21) -> 0 | I21: =IF($D21=0,0,IF(AND($G21>0,$H21<>"Yes"),D21,IF(AND($G21>0,$H21="Yes"),COUNTRY_INFO!$F21,0))) -> 0 | K21: 0 | L21: 0 | M21: 0 | N21: 0 | O21: 0 | Q21: 0 | R21: 0
A22: =IF(INTRO!$E$43="Non-endemic"," ", IF(COUNTRY_INFO!A22=0," ",COUNTRY_INFO!A22)) -> Botswana | B22: =IF(INTRO!$E$43="Non-endemic"," ", IF(COUNTRY_INFO!B22=0," ",COUNTRY_INFO!B22)) ->  | C22: =IF(INTRO!$E$43="Non-endemic"," ", IF(COUNTRY_INFO!C22=0," ",COUNTRY_INFO!C22)) -> KWENENG WEST | D22: =IF(INTRO!$E$43="Non-endemic", 0, IF(COUNTRY_INFO!$J22>0, IF(COUNTRY_INFO!$J22=4, 0, IF(COUNTRY_INFO!$J22=1, COUNTRY_INFO!$F22*0.33, IF(COUNTRY_INFO!$J22=2, COUNTRY_INFO!$F22*0.5, COUNTRY_INFO!$F22))), 0)) -> 0 | E22: =IF(INTRO!$E$43="Non-endemic", 0, IF(COUNTRY_INFO!$J22>0, IF(COUNTRY_INFO!$J22=4, 0, IF(COUNTRY_INFO!$J22=1, 0, IF(COUNTRY_INFO!$J22=2, COUNTRY_INFO!$G22*0.2, COUNTRY_INFO!$G22))), 0)) -> 0 | F22: 0 | G22: =IF(INTRO!$E$43="Non-endemic", "Not required", COUNTRY_INFO!P22) -> 0 | I22: =IF($D22=0,0,IF(AND($G22>0,$H22<>"Yes"),D22,IF(AND($G22>0,$H22="Yes"),COUNTRY_INFO!$F22,0))) -> 0 | K22: 0 | L22: 0 | M22: 0 | N22: 0 | O22: 0 | Q22: 0 | R22: 0
A23: =IF(INTRO!$E$43="Non-endemic"," ", IF(COUNTRY_INFO!A23=0," ",COUNTRY_INFO!A23)) -> Botswana | B23: =IF(INTRO!$E$43="Non-endemic"," ", IF(COUNTRY_INFO!B23=0," ",COUNTRY_INFO!B23)) ->  | C23: =IF(INTRO!$E$43="Non-endemic"," ", IF(COUNTRY_INFO!C23=0," ",COUNTRY_INFO!C23)) -> LOBATSE | D23: =IF(INTRO!$E$43="Non-endemic", 0, IF(COUNTRY_INFO!$J23>0, IF(COUNTRY_INFO!$J23=4, 0, IF(COUNTRY_INFO!$J23=1, COUNTRY_INFO!$F23*0.33, IF(COUNTRY_INFO!$J23=2, COUNTRY_INFO!$F23*0.5, COUNTRY_INFO!$F23))), 0)) -> 0 | E23: =IF(INTRO!$E$43="Non-endemic", 0, IF(COUNTRY_INFO!$J23>0, IF(COUNTRY_INFO!$J23=4, 0, IF(COUNTRY_INFO!$J23=1, 0, IF(COUNTRY_INFO!$J23=2, COUNTRY_INFO!$G23*0.2, COUNTRY_INFO!$G23))), 0)) -> 0 | F23: 0 | G23: =IF(INTRO!$E$43="Non-endemic", "Not required", COUNTRY_INFO!P23) -> 0 | I23: =IF($D23=0,0,IF(AND($G23>0,$H23<>"Yes"),D23,IF(AND($G23>0,$H23="Yes"),COUNTRY_INFO!$F23,0))) -> 0 | K23: 0 | L23: 0 | M23: 0 | N23: 0 | O23: 0 | Q23: 0 | R23: 0
A24: =IF(INTRO!$E$43="Non-endemic"," ", IF(COUNTRY_INFO!A24=0," ",COUNTRY_INFO!A24)) -> Botswana | B24: =IF(INTRO!$E$43="Non-endemic"," ", IF(COUNTRY_INFO!B24=0," ",COUNTRY_INFO!B24)) ->  | C24: =IF(INTRO!$E$43="Non-endemic"," ", IF(COUNTRY_INFO!C24=0," ",COUNTRY_INFO!C24)) -> MABUTSANE | D24: =IF(INTRO!$E$43="Non-endemic", 0, IF(COUNTRY_INFO!$J24>0, IF(COUNTRY_INFO!$J24=4, 0, IF(COUNTRY_INFO!$J24=1, COUNTRY_INFO!$F24*0.33, IF(COUNTRY_INFO!$J24=2, COUNTRY_INFO!$F24*0.5, COUNTRY_INFO!$F24))), 0)) -> 0 | E24: =IF(INTRO!$E$43="Non-endemic", 0, IF(COUNTRY_INFO!$J24>0, IF(COUNTRY_INFO!$J24=4, 0, IF(COUNTRY_INFO!$J24=1, 0, IF(COUNTRY_INFO!$J24=2, COUNTRY_INFO!$G24*0.2, COUNTRY_INFO!$G24))), 0)) -> 0 | F24: 0 | G24: =IF(INTRO!$E$43="Non-endemic", "Not required", COUNTRY_INFO!P24) -> 0 | I24: =IF($D24=0,0,IF(AND($G24>0,$H24<>"Yes"),D24,IF(AND($G24>0,$H24="Yes"),COUNTRY_INFO!$F24,0))) -> 0 | K24: 0 | L24: 0 | M24: 0 | N24: 0 | O24: 0 | Q24: 0 | R24: 0
A25: =IF(INTRO!$E$43="Non-endemic"," ", IF(COUNTRY_INFO!A25=0," ",COUNTRY_INFO!A25)) -> Botswana | B25: =IF(INTRO!$E$43="Non-endemic"," ", IF(COUNTRY_INFO!B25=0," ",COUNTRY_INFO!B25)) ->  | C25: =IF(INTRO!$E$43="Non-endemic"," ", IF(COUNTRY_INFO!C25=0," ",COUNTRY_INFO!C25)) -> MAHALAPYE | D25: =IF(INTRO!$E$43="Non-endemic", 0, IF(COUNTRY_INFO!$J25>0, IF(COUNTRY_INFO!$J25=4, 0, IF(COUNTRY_INFO!$J25=1, COUNTRY_INFO!$F25*0.33, IF(COUNTRY_INFO!$J25=2, COUNTRY_INFO!$F25*0.5, COUNTRY_INFO!$F25))), 0)) -> 0 | E25: =IF(INTRO!$E$43="Non-endemic", 0, IF(COUNTRY_INFO!$J25>0, IF(COUNTRY_INFO!$J25=4, 0, IF(COUNTRY_INFO!$J25=1, 0, IF(COUNTRY_INFO!$J25=2, COUNTRY_INFO!$G25*0.2, COUNTRY_INFO!$G25))), 0)) -> 0 | F25: 0 | G25: =IF(INTRO!$E$43="Non-endemic", "Not required", COUNTRY_INFO!P25) -> 0 | I25: =IF($D25=0,0,IF(AND($G25>0,$H25<>"Yes"),D25,IF(AND($G25>0,$H25="Yes"),COUNTRY_INFO!$F25,0))) -> 0 | K25: 0 | L25: 0 | M25: 0 | N25: 0 | O25: 0 | Q25: 0 | R25: 0
A26: =IF(INTRO!$E$43="Non-endemic"," ", IF(COUNTRY_INFO!A26=0," ",COUNTRY_INFO!A26)) -> Botswana | B26: =IF(INTRO!$E$43="Non-endemic"," ", IF(COUNTRY_INFO!B26=0," ",COUNTRY_INFO!B26)) ->  | C26: =IF(INTRO!$E$43="Non-endemic"," ", IF(COUNTRY_INFO!C26=0," ",COUNTRY_INFO!C26)) -> NGAMILAND | D26: =IF(INTRO!$E$43="Non-endemic", 0, IF(COUNTRY_INFO!$J26>0, IF(COUNTRY_INFO!$J26=4, 0, IF(COUNTRY_INFO!$J26=1, COUNTRY_INFO!$F26*0.33, IF(COUNTRY_INFO!$J26=2, COUNTRY_INFO!$F26*0.5, COUNTRY_INFO!$F26))), 0)) -> 0 | E26: =IF(INTRO!$E$43="Non-endemic", 0, IF(COUNTRY_INFO!$J26>0, IF(COUNTRY_INFO!$J26=4, 0, IF(COUNTRY_INFO!$J26=1, 0, IF(COUNTRY_INFO!$J26=2, COUNTRY_INFO!$G26*0.2, COUNTRY_INFO!$G26))), 0)) -> 0 | F26: 0 | G26: =IF(INTRO!$E$43="Non-endemic", "Not required", COUNTRY_INFO!P26) -> 0 | I26: =IF($D26=0,0,IF(AND($G26>0,$H26<>"Yes"),D26,IF(AND($G26>0,$H26="Yes"),COUNTRY_INFO!$F26,0))) -> 0 | K26: 0 | L26: 0 | M26: 0 | N26: 0 | O26: 0 | Q26: 0 | R26: 0
A27: =IF(INTRO!$E$43="Non-endemic"," ", IF(COUNTRY_INFO!A27=0," ",COUNTRY_INFO!A27)) -> Botswana | B27: =IF(INTRO!$E$43="Non-endemic"," ", IF(COUNTRY_INFO!B27=0," ",COUNTRY_INFO!B27)) ->  | C27: =IF(INTRO!$E$43="Non-endemic"," ", IF(COUNTRY_INFO!C27=0," ",COUNTRY_INFO!C27)) -> NORTH EAST | D27: =IF(INTRO!$E$43="Non-endemic", 0, IF(COUNTRY_INFO!$J27>0, IF(COUNTRY_INFO!$J27=4, 0, IF(COUNTRY_INFO!$J27=1, COUNTRY_INFO!$F27*0.33, IF(COUNTRY_INFO!$J27=2, COUNTRY_INFO!$F27*0.5, COUNTRY_INFO!$F27))), 0)) -> 0 | E27: =IF(INTRO!$E$43="Non-endemic", 0, IF(COUNTRY_INFO!$J27>0, IF(COUNTRY_INFO!$J27=4, 0, IF(COUNTRY_INFO!$J27=1, 0, IF(COUNTRY_INFO!$J27=2, COUNTRY_INFO!$G27*0.2, COUNTRY_INFO!$G27))), 0)) -> 0 | F27: 0 | G27: =IF(INTRO!$E$43="Non-endemic", "Not required", COUNTRY_INFO!P27) -> 0 | I27: =IF($D27=0,0,IF(AND($G27>0,$H27<>"Yes"),D27,IF(AND($G27>0,$H27="Yes"),COUNTRY_INFO!$F27,0))) -> 0 | K27: 0 | L27: 0 | M27: 0 | N27: 0 | O27: 0 | Q27: 0 | R27: 0
A28: =IF(INTRO!$E$43="Non-endemic"," ", IF(COUNTRY_INFO!A28=0," ",COUNTRY_INFO!A28)) -> Botswana | B28: =IF(INTRO!$E$43="Non-endemic"," ", IF(COUNTRY_INFO!B28=0," ",COUNTRY_INFO!B28)) ->  | C28: =IF(INTRO!$E$43="Non-endemic"," ", IF(COUNTRY_INFO!C28=0," ",COUNTRY_INFO!C28)) -> OKAVANGO | D28: =IF(INTRO!$E$43="Non-endemic", 0, IF(COUNTRY_INFO!$J28>0, IF(COUNTRY_INFO!$J28=4, 0, IF(COUNTRY_INFO!$J28=1, COUNTRY_INFO!$F28*0.33, IF(COUNTRY_INFO!$J28=2, COUNTRY_INFO!$F28*0.5, COUNTRY_INFO!$F28))), 0)) -> 0 | E28: =IF(INTRO!$E$43="Non-endemic", 0, IF(COUNTRY_INFO!$J28>0, IF(COUNTRY_INFO!$J28=4, 0, IF(COUNTRY_INFO!$J28=1, 0, IF(COUNTRY_INFO!$J28=2, COUNTRY_INFO!$G28*0.2, COUNTRY_INFO!$G28))), 0)) -> 0 | F28: 0 | G28: =IF(INTRO!$E$43="Non-endemic", "Not required", COUNTRY_INFO!P28) -> 0 | I28: =IF($D28=0,0,IF(AND($G28>0,$H28<>"Yes"),D28,IF(AND($G28>0,$H28="Yes"),COUNTRY_INFO!$F28,0))) -> 0 | K28: 0 | L28: 0 | M28: 0 | N28: 0 | O28: 0 | Q28: 0 | R28: 0
A29: =IF(INTRO!$E$43="Non-endemic"," ", IF(COUNTRY_INFO!A29=0," ",COUNTRY_INFO!A29)) -> Botswana | B29: =IF(INTRO!$E$43="Non-endemic"," ", IF(COUNTRY_INFO!B29=0," ",COUNTRY_INFO!B29)) ->  | C29: =IF(INTRO!$E$43="Non-endemic"," ", IF(COUNTRY_INFO!C29=0," ",COUNTRY_INFO!C29)) -> SELIBE PHIKWE | D29: =IF(INTRO!$E$43="Non-endemic", 0, IF(COUNTRY_INFO!$J29>0, IF(COUNTRY_INFO!$J29=4, 0, IF(COUNTRY_INFO!$J29=1, COUNTRY_INFO!$F29*0.33, IF(COUNTRY_INFO!$J29=2, COUNTRY_INFO!$F29*0.5, COUNTRY_INFO!$F29))), 0)) -> 0 | E29: =IF(INTRO!$E$43="Non-endemic", 0, IF(COUNTRY_INFO!$J29>0, IF(COUNTRY_INFO!$J29=4, 0, IF(COUNTRY_INFO!$J29=1, 0, IF(COUNTRY_INFO!$J29=2, COUNTRY_INFO!$G29*0.2, COUNTRY_INFO!$G29))), 0)) -> 0 | F29: 0 | G29: =IF(INTRO!$E$43="Non-endemic", "Not required", COUNTRY_INFO!P29) -> 0 | I29: =IF($D29=0,0,IF(AND($G29>0,$H29<>"Yes"),D29,IF(AND($G29>0,$H29="Yes"),COUNTRY_INFO!$F29,0))) -> 0 | K29: 0 | L29: 0 | M29: 0 | N29: 0 | O29: 0 | Q29: 0 | R29: 0
A30: =IF(INTRO!$E$43="Non-endemic"," ", IF(COUNTRY_INFO!A30=0," ",COUNTRY_INFO!A30)) -> Botswana | B30: =IF(INTRO!$E$43="Non-endemic"," ", IF(COUNTRY_INFO!B30=0," ",COUNTRY_INFO!B30)) ->  | C30: =IF(INTRO!$E$43="Non-endemic"," ", IF(COUNTRY_INFO!C30=0," ",COUNTRY_INFO!C30)) -> SEROWE / PALAPYE | D30: =IF(INTRO!$E$43="Non-endemic", 0, IF(COUNTRY_INFO!$J30>0, IF(COUNTRY_INFO!$J30=4, 0, IF(COUNTRY_INFO!$J30=1, COUNTRY_INFO!$F30*0.33, IF(COUNTRY_INFO!$J30=2, COUNTRY_INFO!$F30*0.5, COUNTRY_INFO!$F30))), 0)) -> 0 | E30: =IF(INTRO!$E$43="Non-endemic", 0, IF(COUNTRY_INFO!$J30>0, IF(COUNTRY_INFO!$J30=4, 0, IF(COUNTRY_INFO!$J30=1, 0, IF(COUNTRY_INFO!$J30=2, COUNTRY_INFO!$G30*0.2, COUNTRY_INFO!$G30))), 0)) -> 0 | F30: 0 | G30: =IF(INTRO!$E$43="Non-endemic", "Not required", COUNTRY_INFO!P30) -> 0 | I30: =IF($D30=0,0,IF(AND($G30>0,$H30<>"Yes"),D30,IF(AND($G30>0,$H30="Yes"),COUNTRY_INFO!$F30,0))) -> 0 | K30: 0 | L30: 0 | M30: 0 | N30: 0 | O30: 0 | Q30: 0 | R30: 0
A31: =IF(INTRO!$E$43="Non-endemic"," ", IF(COUNTRY_INFO!A31=0," ",COUNTRY_INFO!A31)) -> Botswana | B31: =IF(INTRO!$E$43="Non-endemic"," ", IF(COUNTRY_INFO!B31=0," ",COUNTRY_INFO!B31)) ->  | C31: =IF(INTRO!$E$43="Non-endemic"," ", IF(COUNTRY_INFO!C31=0," ",COUNTRY_INFO!C31)) -> SOUTH EAST | D31: =IF(INTRO!$E$43="Non-endemic", 0, IF(COUNTRY_INFO!$J31>0, IF(COUNTRY_INFO!$J31=4, 0, IF(COUNTRY_INFO!$J31=1, COUNTRY_INFO!$F31*0.33, IF(COUNTRY_INFO!$J31=2, COUNTRY_INFO!$F31*0.5, COUNTRY_INFO!$F31))), 0)) -> 0 | E31: =IF(INTRO!$E$43="Non-endemic", 0, IF(COUNTRY_INFO!$J31>0, IF(COUNTRY_INFO!$J31=4, 0, IF(COUNTRY_INFO!$J31=1, 0, IF(COUNTRY_INFO!$J31=2, COUNTRY_INFO!$G31*0.2, COUNTRY_INFO!$G31))), 0)) -> 0 | F31: 0 | G31: =IF(INTRO!$E$43="Non-endemic", "Not required", COUNTRY_INFO!P31) -> 0 | I31: =IF($D31=0,0,IF(AND($G31>0,$H31<>"Yes"),D31,IF(AND($G31>0,$H31="Yes"),COUNTRY_INFO!$F31,0))) -> 0 | K31: 0 | L31: 0 | M31: 0 | N31: 0 | O31: 0 | Q31: 0 | R31: 0
A32: =IF(INTRO!$E$43="Non-endemic"," ", IF(COUNTRY_INFO!A32=0," ",COUNTRY_INFO!A32)) -> Botswana | B32: =IF(INTRO!$E$43="Non-endemic"," ", IF(COUNTRY_INFO!B32=0," ",COUNTRY_INFO!B32)) ->  | C32: =IF(INTRO!$E$43="Non-endemic"," ", IF(COUNTRY_INFO!C32=0," ",COUNTRY_INFO!C32)) -> TUTUME | D32: =IF(INTRO!$E$43="Non-endemic", 0, IF(COUNTRY_INFO!$J32>0, IF(COUNTRY_INFO!$J32=4, 0, IF(COUNTRY_INFO!$J32=1, COUNTRY_INFO!$F32*0.33, IF(COUNTRY_INFO!$J32=2, COUNTRY_INFO!$F32*0.5, COUNTRY_INFO!$F32))), 0)) -> 0 | E32: =IF(INTRO!$E$43="Non-endemic", 0, IF(COUNTRY_INFO!$J32>0, IF(COUNTRY_INFO!$J32=4, 0, IF(COUNTRY_INFO!$J32=1, 0, IF(COUNTRY_INFO!$J32=2, COUNTRY_INFO!$G32*0.2, COUNTRY_INFO!$G32))), 0)) -> 0 | F32: 0 | G32: =IF(INTRO!$E$43="Non-endemic", "Not required", COUNTRY_INFO!P32) -> 0 | I32: =IF($D32=0,0,IF(AND($G32>0,$H32<>"Yes"),D32,IF(AND($G32>0,$H32="Yes"),COUNTRY_INFO!$F32,0))) -> 0 | K32: 0 | L32: 0 | M32: 0 | N32: 0 | O32: 0 | Q32: 0 | R32: 0

Sheet SUMMARY
B1: The current version should be used in countries non-endemic for onchocerciasis
B2: Joint request for selected PC medicines
B4: This form constitutes an official government request to WHO for the supply of the PC medicines. It can be submitted any time before 15 August of the current year for distribution of medicines during the following year, but at least 6-8 months before the planned PC intervention(s) to allow time for reviewing and approval of the request, placing order, manufacturing PC medicines and shipment to the country.
B6: Country | C6: =IF(INTRO!$E$33<>0,INTRO!$E$33," ") -> Botswana | G6: Year | H6: =IF(INTRO!$E$35<>0,INTRO!$E$35," ") -> 2017
B8: Information on PC medicines requested to WHO
B10: PC medicine | C10: Number of tablets | G10: Total number of bottles
C11: Required | D11: In stock | E11: In pipeline | F11: Requested | G11: Required | H11: Requested
B12: Albendazole for STH (SAC) | C12: 57238 | D12: 66000 | F12: =IF(C12>(D12+E12),C12-D12-E12, 0) -> 0 | G12: =IF($C12=0,0, IF($B12="Albendazole for LF", IF($C12=ALB_MBD!$I$4,ALB_MBD!$U$4,ROUNDUP($C12/200,0)), IF($B12="Albendazole for STH (SAC)", IF($C12=ALB_MBD!$L$4,ALB_MBD!$X$4,ROUNDUP($C12/200,0)), IF($B12="Mebendazole (SAC)", IF($C12=ALB_MBD!$P$4,ALB_MBD!$AA$4,ROUNDUP($C12/150,0)), IF($B12="Diethylcarbamazine citrate", IF($C12=DEC!$J$4,DEC!$M$4,ROUNDUP($C12/1000,0)), IF($B12="Praziquantel (SAC)", IF($C12=PZQ!$O$4,PZQ!$R$4,ROUNDUP($C12/1000,0)))))))) -> 289 | H12: =IF($F12=0,0,IF(OR($B12="Albendazole for LF",$B12="Albendazole for STH (SAC)"),$G12-ROUNDUP(($E12+$D12)/200,0),IF($B12="Mebendazole (SAC)",$G12-ROUNDUP(($E12+$D12)/150,0),$G12-ROUNDUP(($E12+$D12)/1000,0)))) -> 0
F13: 0 | G13: =IF($C13=0,0, IF($B13="Albendazole for LF", IF($C13=ALB_MBD!$I$4,ALB_MBD!$U$4,ROUNDUP($C13/200,0)), IF($B13="Albendazole for STH (SAC)", IF($C13=ALB_MBD!$L$4,ALB_MBD!$X$4,ROUNDUP($C13/200,0)), IF($B13="Mebendazole (SAC)", IF($C13=ALB_MBD!$P$4,ALB_MBD!$AA$4,ROUNDUP($C13/150,0)), IF($B13="Diethylcarbamazine citrate", IF($C13=DEC!$J$4,DEC!$M$4,ROUNDUP($C13/1000,0)), IF($B13="Praziquantel (SAC)", IF($C13=PZQ!$O$4,PZQ!$R$4,ROUNDUP($C13/1000,0)))))))) -> 0 | H13: 0
F14: 0 | G14: =IF($C14=0,0, IF($B14="Albendazole for LF", IF($C14=ALB_MBD!$I$4,ALB_MBD!$U$4,ROUNDUP($C14/200,0)), IF($B14="Albendazole for STH (SAC)", IF($C14=ALB_MBD!$L$4,ALB_MBD!$X$4,ROUNDUP($C14/200,0)), IF($B14="Mebendazole (SAC)", IF($C14=ALB_MBD!$P$4,ALB_MBD!$AA$4,ROUNDUP($C14/150,0)), IF($B14="Diethylcarbamazine citrate", IF($C14=DEC!$J$4,DEC!$M$4,ROUNDUP($C14/1000,0)), IF($B14="Praziquantel (SAC)", IF($C14=PZQ!$O$4,PZQ!$R$4,ROUNDUP($C14/1000,0)))))))) -> 0 | H14: 0
F15: 0 | G15: =IF($C15=0,0, IF($B15="Albendazole for LF", IF($C15=ALB_MBD!$I$4,ALB_MBD!$U$4,ROUNDUP($C15/200,0)), IF($B15="Albendazole for STH (SAC)", IF($C15=ALB_MBD!$L$4,ALB_MBD!$X$4,ROUNDUP($C15/200,0)), IF($B15="Mebendazole (SAC)", IF($C15=ALB_MBD!$P$4,ALB_MBD!$AA$4,ROUNDUP($C15/150,0)), IF($B15="Diethylcarbamazine citrate", IF($C15=DEC!$J$4,DEC!$M$4,ROUNDUP($C15/1000,0)), IF($B15="Praziquantel (SAC)", IF($C15=PZQ!$O$4,PZQ!$R$4,ROUNDUP($C15/1000,0)))))))) -> 0 | H15: 0
F16: 0 | G16: =IF($C16=0,0, IF($B16="Albendazole for LF", IF($C16=ALB_MBD!$I$4,ALB_MBD!$U$4,ROUNDUP($C16/200,0)), IF($B16="Albendazole for STH (SAC)", IF($C16=ALB_MBD!$L$4,ALB_MBD!$X$4,ROUNDUP($C16/200,0)), IF($B16="Mebendazole (SAC)", IF($C16=ALB_MBD!$P$4,ALB_MBD!$AA$4,ROUNDUP($C16/150,0)), IF($B16="Diethylcarbamazine citrate", IF($C16=DEC!$J$4,DEC!$M$4,ROUNDUP($C16/1000,0)), IF($B16="Praziquantel (SAC)", IF($C16=PZQ!$O$4,PZQ!$R$4,ROUNDUP($C16/1000,0)))))))) -> 0 | H16: 0
F17: 0 | G17: =IF($C17=0,0, IF($B17="Albendazole for LF", IF($C17=ALB_MBD!$I$4,ALB_MBD!$U$4,ROUNDUP($C17/200,0)), IF($B17="Albendazole for STH (SAC)", IF($C17=ALB_MBD!$L$4,ALB_MBD!$X$4,ROUNDUP($C17/200,0)), IF($B17="Mebendazole (SAC)", IF($C17=ALB_MBD!$P$4,ALB_MBD!$AA$4,ROUNDUP($C17/150,0)), IF($B17="Diethylcarbamazine citrate", IF($C17=DEC!$J$4,DEC!$M$4,ROUNDUP($C17/1000,0)), IF($B17="Praziquantel (SAC)", IF($C17=PZQ!$O$4,PZQ!$R$4,ROUNDUP($C17/1000,0)))))))) -> 0 | H17: 0
B19: Number of people to be treated with donated medicine ( see User Guide for details )
B21: Disease | G21: Round 1 | H21: Round 2
B22: Soil-transmitted helminthiases | C22: These figures are estimated only for targeted age groups to be treated with donated medicines in areas where treatment for specific disease is required | G22: 2266 | H22: 54972
B29: Information on planned PC interventions
B31: PC medicine | C31: Planned date of the 1st round of PC | E31: Planned date of the 2nd round of PC | G31: Date by which the medicine should arrive to the national warehouse
B32: Albendazole for STH | C32: February | D32: 2017 | E32: August | F32: 2017 | G32: December | H32: 2016
B39: Information on PC medicines for treatment of population not targeted with current donation through WHO
B41: PC medicine | C41: Age group | D41: # of people | E41: # of tablets | F41: Specify source | H41: Status
B53: Checklist
B54: Submission
B55: What should be submitted?
B56: The supply of the requested medicines should be based on up-to-date epidemiological data, specific usage plans, and capacity for implementation. The following checklist ensures that all necessary forms and information are provided to WHO (in electronic format).
B57: Joint request for selected PC medicines
B58: Joint reporting form
B59: PC epidemiological data reporting form
B61: Availability of funding for implementation
B63: Financial resources secured for the implementation in the year for which the medicines are requested
B64: Ministry of Health will bear the cost of implementation of the Mass Drug Administration.
B68: Who should fill in the form?
B69: National NTD coordinator should compile all required information needed to complete the request form. In the absence of such a coordinator, specific programme managers should coordinate their respective part. The final single request must be approved by the Ministry of Health.
B71: Information on person(s) who has filled in the form
B73: Title | C73: Name | E73: Phone | G73: Email | H73: Date
B74: NTD/PC Coordinator | C74: Tuduetso L Monagen | E74: 2673632038 | G74: tmonagen@gmail.com | H74: 2016-08-29
B75: Data Manager | C75: Sidney Otladisa Kololo | E75: 00267 363 2757 | G75: kolsid@gmail.com | H75: 2016-08-29
B79: The WHO recommends that all serious adverse events suspected to be associated with use of PC medicines should be reported in accordance with national Pharmacovigilance guidelines. In the absence of a national Pharmacovigilance system, contact the WHO Neglected Tropical Disease department for guidance.
B80: The WHO is committed to facilitate PC medicines donation with a free-of-charge supply of a) albendazole, mebendazole and praziquantel to the MoH’s national warehouse; and b) diethylcarbamazine citrate to the entry port/airport of recipient countries.
B81: The institution submitting the present request is responsible for a) arranging the offloading of the medicines from the truck and storing it in the national warehouse and subsequent shipment to the final distribution centres; b) for registering the donated medicine, if required, by the relevant national regulatory authorities; and c) for informing about any changes of their PC campaigns (e.g. postpone of the planned MDA date, replacement of NTD coordinator, etc.).
B82: Name and signature of NTD coordinator or Ministry of Health representative | C82: TUDUETSO LEKA MONAGEN
B83: Date: | C83: 2016-08-29
B85: Please complete information on shipment and consignee in the workshsheet SHIPMENT
B86: Please send the national request (signed and in electronic format) to the concerned WR with copy to:
B88: WHO headquarters | C88: PC_JointForms@who.int
B89: WHO Regional Office | C89: Regional Advisor for NTD
B91: Please note that your request will be reviewed by an independent panel before approval. The information in this form, joint reporting form and PC epidemiological data reporting form are essential for WHO to ensure efficient usage of medicines. As part of its ongoing monitoring and evaluation activities, and to meet its contractual obligations to donors and other partners, WHO and its appointed agents reserve the right to periodically inspect stocks of the medicines at country level.

Sheet SHIPMENT
B2: Joint request for selected PC medicines
B4: Country | C4: =IF(INTRO!$E$33<>0,INTRO!$E$33," ") -> Botswana | G4: Year | H4: =IF(INTRO!$E$35<>0,INTRO!$E$35," ") -> 2017
B6: Information on shipment and consignee
C8: Consignee | F8: Delivery point / Final recipient if different from the consignee
B9: Name
B10: Department/Unit
B11: Organization
B12: Phone
B13: Fax
B14: E-mail
B15: Mailing address
C17: Consignee | F17: Delivery point / Final recipient if different from the consignee
B18: Name
B19: Department/Unit
B20: Organization
B21: Phone
B22: Fax
B23: E-mail
B24: Mailing address
C26: Consignee | F26: Delivery point / Final recipient if different from the consignee
B27: Name
B28: Department/Unit
B29: Organization
B30: Phone
B31: Fax
B32: E-mail
B33: Mailing address
B35: Information on import requirements
B37: Is the Import Permit required?
B38: How long does it take to obtain the Import Permit?
B39: Do you require any documents to be submitted together with the Import Permit application?
B40: If YES, please specify here
B41: Does the consignee have to get customs clearance before the shipment can proceed?
B42: Is there any additional information may be helpful in ensuring timely clearance and delivery of medicines to your country?
B43: If YES, please specify here
B45: Additional information
